Body,Body Name,Date,TransNo,Amount � (Excl VAT),Supplier name,Description,Expense Area,Expense Type,Expense Code,
http://opendatacommunities.org/id/london-borough-council/sutton,London Borough of Sutton,23/01/2022,10005594,47.23, FACEBK MN28NB7AL2,SPLIT -  ADS - NOT ALONE IN SUTTON (24.29%),Peoples Services,Publicity,A44266,
http://opendatacommunities.org/id/london-borough-council/sutton,London Borough of Sutton,01/01/2022,10005594,108.91, GOOGLE ADS8517410550,ADS - NOT ALONE IN SUTTON,Peoples Services,Publicity,A44266,
http://opendatacommunities.org/id/london-borough-council/sutton,London Borough of Sutton,07/12/2021,10005594,-20.00, NONSTOPKIDS,HAF Party,Health and Wellbeing,Equipment And Materials Purchase,A40000,
http://opendatacommunities.org/id/london-borough-council/sutton,London Borough of Sutton,13/01/2022,10005594,215.83, AO RETAIL LIMITED,DISHWASHER,Health and Wellbeing,Equipment And Materials Purchase,A40000,
http://opendatacommunities.org/id/london-borough-council/sutton,London Borough of Sutton,12/01/2022,10005594,19.16, SP   TICKIT,REPLACEMENT CHARGER CABLE,Health and Wellbeing,Equipment And Materials Purchase,A40000,
http://opendatacommunities.org/id/london-borough-council/sutton,London Borough of Sutton,20/01/2022,10005594,7.38, AMAZON.CO.UK 659OE34A5,TOYS AND EQUIPMENT,Health and Wellbeing,Equipment And Materials Purchase,A40000,
http://opendatacommunities.org/id/london-borough-council/sutton,London Borough of Sutton,20/01/2022,10005594,10.29, AMAZON.CO.UK U23FC6WT5,TOYS AND EQUIPMENT,Health and Wellbeing,Equipment And Materials Purchase,A40000,
http://opendatacommunities.org/id/london-borough-council/sutton,London Borough of Sutton,10/01/2022,10005594,12.15, SAINSBURYS S/MKTS,GROCERIES,Health and Wellbeing,Provisions,A41006,
http://opendatacommunities.org/id/london-borough-council/sutton,London Borough of Sutton,20/01/2022,10005594,6.14, ASDA SUPERSTORE,GROCERIES,Health and Wellbeing,Provisions,A41006,
http://opendatacommunities.org/id/london-borough-council/sutton,London Borough of Sutton,05/01/2022,10005594,109.54, SAINSBURYS.CO.UK,GROCERIES,Health and Wellbeing,Provisions,A41006,
http://opendatacommunities.org/id/london-borough-council/sutton,London Borough of Sutton,05/01/2022,10005594,-21.70, JS ONLINE GROCERY,GROCERY REFUND,Health and Wellbeing,Provisions,A41006,
http://opendatacommunities.org/id/london-borough-council/sutton,London Borough of Sutton,25/01/2022,10005594,122.16, AMZNMKTPLACE,TRAINING,Health and Wellbeing,Staff Development And Training,A15022,
http://opendatacommunities.org/id/london-borough-council/sutton,London Borough of Sutton,16/01/2022,10005594,66.76, AMZNMKTPLACE,"LUNAR NEW YEAR EVENT, WHITEHALL HERITAGE HOUSE",Health and Wellbeing,Other Supplies & Services,A44291,
http://opendatacommunities.org/id/london-borough-council/sutton,London Borough of Sutton,13/01/2022,10005594,21.15, HOBBYCRAFT TRADING LIM,"LUNAR NEW YEAR EVENT, WHITEHALL HERITAGE HOUSE",Health and Wellbeing,Other Supplies & Services,A44291,
http://opendatacommunities.org/id/london-borough-council/sutton,London Borough of Sutton,13/01/2022,10005594,27.07, SP   COTSWOLD PAPER,"LUNAR NEW YEAR EVENT, WHITEHALL HERITAGE HOUSE",Health and Wellbeing,Other Supplies & Services,A44291,
http://opendatacommunities.org/id/london-borough-council/sutton,London Borough of Sutton,25/01/2022,10005594,78.00, NCVO TRAINING,TRAINING,Health and Wellbeing,Other Supplies & Services,A44291,
http://opendatacommunities.org/id/london-borough-council/sutton,London Borough of Sutton,13/01/2022,10005594,47.86, PAYPAL  COLORTREELI,"LUNAR NEW YEAR EVENT, WHITEHALL HERITAGE HOUSE",Health and Wellbeing,Other Supplies & Services,A44291,
http://opendatacommunities.org/id/london-borough-council/sutton,London Borough of Sutton,30/12/2021,10005594,25.10, SNAP INC SNAP SNAP ADS,ADS - COVID-19 FESTIVE 2021,Health and Wellbeing,Provider Contract Payments,A44290,
http://opendatacommunities.org/id/london-borough-council/sutton,London Borough of Sutton,01/01/2022,10005594,14.95, SNAP INC SNAP SNAP ADS,ADS - COVID-19 FESTIVE 2021,Health and Wellbeing,Provider Contract Payments,A44290,
http://opendatacommunities.org/id/london-borough-council/sutton,London Borough of Sutton,31/12/2021,10005594,22.72, SNAP INC SNAP SNAP ADS,ADS - COVID-19 FESTIVE 2021,Health and Wellbeing,Provider Contract Payments,A44290,
http://opendatacommunities.org/id/london-borough-council/sutton,London Borough of Sutton,23/01/2022,10005594,147.23, FACEBK MN28NB7AL2,SPLIT - COVID ADS (75.71%),Health and Wellbeing,Provider Contract Payments,A44290,
http://opendatacommunities.org/id/london-borough-council/sutton,London Borough of Sutton,20/01/2022,10005594,11.32, AMZNMKTPLACE AMAZON.CO,APPLE ICHARGER FOR GARDEN ROOM,Resources,Equipment And Materials Repairs & Maintenance,A40051,
http://opendatacommunities.org/id/london-borough-council/sutton,London Borough of Sutton,03/01/2022,10005594,9.99, SPOTIFY UK,MUSIC FOR CEREMONIES,Resources,Subscriptions,A47010,
http://opendatacommunities.org/id/london-borough-council/sutton,London Borough of Sutton,19/01/2022,10005594,29.80, MARKS&SPENCER PLC SACA,TRAINING EVENT,Resources,Hospitality,A46020,
http://opendatacommunities.org/id/london-borough-council/sutton,London Borough of Sutton,29/12/2021,10005594,123.90, IW GROUP SERVICES (UK),AWAY DAY ROOM AT SUTTON POINT FOR 'REDACTED - PERSONAL DATA' (CANCELLED),Resources,Miscellaneous Expenses,A49000,
http://opendatacommunities.org/id/london-borough-council/sutton,London Borough of Sutton,12/01/2022,10005594,38.02, PAYPAL  ADDONS,SUBSCRIPTION REQUIRED FOR SOCIAL CARE SUPPORT TEAM TO SIGN DOCUMENTS,Resources,Subscriptions,A47010,
http://opendatacommunities.org/id/london-borough-council/sutton,London Borough of Sutton,20/01/2022,10005594,0.14, PORTANT.CO,EXCHANGED RATE FOR PORTANT,Resources,Business Support Support,H10011,
http://opendatacommunities.org/id/london-borough-council/sutton,London Borough of Sutton,13/01/2022,10005594,18.00, WILKO RETAIL LIMITED,PURCHASE OF BATTERIES FOR BSO SAFE,Resources,Business Support Support,H10011,
http://opendatacommunities.org/id/london-borough-council/sutton,London Borough of Sutton,01/01/2022,10005594,30.87, PAYPAL  ADDONS,PAYPAL ADDON 30.87 DECEMBER INVOICE.PDF,Resources,Business Support Support,H10011,
http://opendatacommunities.org/id/london-borough-council/sutton,London Borough of Sutton,19/01/2022,10005594,5.16, PORTANT.CO,GOOGLE SHEET ADD ON,Resources,Commissioning Support,H10012,
http://opendatacommunities.org/id/london-borough-council/sutton,London Borough of Sutton,13/01/2022,10005594,95.00, DMA SIGNS LIMITED,SUPPLY ONLY LETTERBOX SIGN (BENHILL ESTATE REGENERATION),Resources,Miscellaneous Expenses,A49000,
http://opendatacommunities.org/id/london-borough-council/sutton,London Borough of Sutton,04/01/2022,10005594,29.99, AMZNMKTPLACE AMAZON.CO,"SPLIT - HAIPUSEN LETTER BOX WITH COMBINATION LOCK - BLACK WALL-MOUNTED MAILBOX WITH NEWSPAPER HOLDER, STAINLESS STEEL, MODERN POST BOX WITH VIEWING WINDOW, LO (100%)",Resources,Miscellaneous Expenses,A49000,
http://opendatacommunities.org/id/london-borough-council/sutton,London Borough of Sutton,26/01/2022,10005594,0.82, NOUNPROJECT.COM,SUBSCRIPTION RECEIPT,Resources,Publicity,A44266,
http://opendatacommunities.org/id/london-borough-council/sutton,London Borough of Sutton,25/01/2022,10005594,29.75, NOUNPROJECT.COM,SUBSCRIPTION RECEIPT,Resources,Publicity,A44266,
http://opendatacommunities.org/id/london-borough-council/sutton,London Borough of Sutton,21/01/2022,10005594,183.91, MAILCHIMP,ENEWSLETTER SERVICE FOR COMMS TEAM,Resources,Publicity,A44266,
http://opendatacommunities.org/id/london-borough-council/sutton,London Borough of Sutton,13/01/2022,10005594,315.70, CHALLENGETROPHIES CO U,TROPHIES FOR SUTTON'S COMMUNITY AWARDS 2021,Resources,Publicity,A44266,
http://opendatacommunities.org/id/london-borough-council/sutton,London Borough of Sutton,13/01/2022,10005594,0.39, MAILCHIM,MAILCHIMP CHARGE,Resources,Publicity,A44266,
http://opendatacommunities.org/id/london-borough-council/sutton,London Borough of Sutton,12/01/2022,10005594,14.01, CLIPCHAMP.COM,BUFFER SUBSCRIPTION,Resources,Publicity,A44266,
http://opendatacommunities.org/id/london-borough-council/sutton,London Borough of Sutton,12/01/2022,10005594,-2.92, CLIPCHAMP.COM,BUFFER SUBSCRIPTION,Resources,Publicity,A44266,
http://opendatacommunities.org/id/london-borough-council/sutton,London Borough of Sutton,11/01/2022,10005594,-106.20, BUFFER PUBLISH PRO YR,BUFFER SUBSCRIPTION - REFUNDED,Resources,Publicity,A44266,
http://opendatacommunities.org/id/london-borough-council/sutton,London Borough of Sutton,31/12/2021,10005594,2.95, BUFFER PUBLISH PRO YR,BUFFER SUBSCRIPTION,Resources,Publicity,A44266,
http://opendatacommunities.org/id/london-borough-council/sutton,London Borough of Sutton,30/12/2021,10005594,107.40, BUFFER PUBLISH PRO YR,BUFFER SUBSCRIPTION - REFUNDED,Resources,Publicity,A44266,
http://opendatacommunities.org/id/london-borough-council/sutton,London Borough of Sutton,14/01/2022,10005594,270.25, MAILCHIMP    MISC,WEB HOSTING,Resources,IT Software Purchase,A45040,
http://opendatacommunities.org/id/london-borough-council/sutton,London Borough of Sutton,17/01/2022,10005594,7.43, MAILCHIMP    MISC,WEB HOSTING,Resources,IT Software Purchase,A45040,
http://opendatacommunities.org/id/london-borough-council/sutton,London Borough of Sutton,06/01/2022,10005594,695.00, REDACTIVE,PUBLIC FINANCE LIVE CONFERENCE FOR 'REDACTED - PERSONAL DATA',Resources,Conference Expenses,A43075,
http://opendatacommunities.org/id/london-borough-council/sutton,London Borough of Sutton,13/01/2022,10005594,808.93, ARGOS LTD,CL&G,Resources,"Grants, Contributions & Donations",A47005,
http://opendatacommunities.org/id/london-borough-council/sutton,London Borough of Sutton,12/01/2022,10005594,179.99, ARGOS LTD,CL&G,Resources,"Grants, Contributions & Donations",A47005,
http://opendatacommunities.org/id/london-borough-council/sutton,London Borough of Sutton,12/01/2022,10005594,129.99, ARGOS LTD,CL&G,Resources,"Grants, Contributions & Donations",A47005,
http://opendatacommunities.org/id/london-borough-council/sutton,London Borough of Sutton,12/01/2022,10005594,-199.00, ARGOS LTD,CL&G,Resources,"Grants, Contributions & Donations",A47005,
http://opendatacommunities.org/id/london-borough-council/sutton,London Borough of Sutton,07/01/2022,10005594,199.00, ARGOS LTD,CL&G,Resources,"Grants, Contributions & Donations",A47005,
http://opendatacommunities.org/id/london-borough-council/sutton,London Borough of Sutton,14/12/2022,10005594,-365.00, CURRYS ONLINE,CL&G,Resources,"Grants, Contributions & Donations",A47005,
http://opendatacommunities.org/id/london-borough-council/sutton,London Borough of Sutton,21/01/2022,10005594,197.95, ARGOS LTD,CL&G,Resources,"Grants, Contributions & Donations",A47005,
http://opendatacommunities.org/id/london-borough-council/sutton,London Borough of Sutton,21/01/2022,10005594,159.00, CURRYS ONLINE,CL&G,Resources,"Grants, Contributions & Donations",A47005,
http://opendatacommunities.org/id/london-borough-council/sutton,London Borough of Sutton,21/01/2022,10005594,114.95, ARGOS LTD,CL&G,Resources,"Grants, Contributions & Donations",A47005,
http://opendatacommunities.org/id/london-borough-council/sutton,London Borough of Sutton,19/01/2022,10005594,538.94, ARGOS LTD,CL&G,Resources,"Grants, Contributions & Donations",A47005,
http://opendatacommunities.org/id/london-borough-council/sutton,London Borough of Sutton,19/01/2022,10005594,-243.95, ARGOS LTD,CL&G,Resources,"Grants, Contributions & Donations",A47005,
http://opendatacommunities.org/id/london-borough-council/sutton,London Borough of Sutton,19/01/2022,10005594,168.95, ARGOS LTD,CL&G,Resources,"Grants, Contributions & Donations",A47005,
http://opendatacommunities.org/id/london-borough-council/sutton,London Borough of Sutton,19/01/2022,10005594,229.99, ARGOS LTD,CL&G,Resources,"Grants, Contributions & Donations",A47005,
http://opendatacommunities.org/id/london-borough-council/sutton,London Borough of Sutton,19/01/2022,10005594,243.95, ARGOS LTD,CL&G,Resources,"Grants, Contributions & Donations",A47005,
http://opendatacommunities.org/id/london-borough-council/sutton,London Borough of Sutton,19/01/2022,10005594,-329.99, ARGOS LTD,CL&G,Resources,"Grants, Contributions & Donations",A47005,
http://opendatacommunities.org/id/london-borough-council/sutton,London Borough of Sutton,14/01/2022,10005594,239.95, ARGOS LTD,CL&G,Resources,"Grants, Contributions & Donations",A47005,
http://opendatacommunities.org/id/london-borough-council/sutton,London Borough of Sutton,19/01/2022,10005594,79.95, ARGOS LTD,CL&G,Resources,"Grants, Contributions & Donations",A47005,
http://opendatacommunities.org/id/london-borough-council/sutton,London Borough of Sutton,14/01/2022,10005594,223.95, ARGOS LTD,CL&G,Resources,"Grants, Contributions & Donations",A47005,
http://opendatacommunities.org/id/london-borough-council/sutton,London Borough of Sutton,14/01/2022,10005594,-223.95, ARGOS LTD,CL&G,Resources,"Grants, Contributions & Donations",A47005,
http://opendatacommunities.org/id/london-borough-council/sutton,London Borough of Sutton,13/01/2022,10005594,680.00, ARGOS LTD,CL&G,Resources,"Grants, Contributions & Donations",A47005,
http://opendatacommunities.org/id/london-borough-council/sutton,London Borough of Sutton,04/01/2022,10005594,224.95, ARGOS LTD,CL&G,Resources,"Grants, Contributions & Donations",A47005,
http://opendatacommunities.org/id/london-borough-council/sutton,London Borough of Sutton,05/01/2022,10005594,-400.15, ARGOS LTD,CL&G,Resources,"Grants, Contributions & Donations",A47005,
http://opendatacommunities.org/id/london-borough-council/sutton,London Borough of Sutton,12/01/2022,10005594,-229.99, ARGOS LTD,CL&G,Resources,"Grants, Contributions & Donations",A47005,
http://opendatacommunities.org/id/london-borough-council/sutton,London Borough of Sutton,11/01/2022,10005594,399.00, ARGOS LTD,CL&G,Resources,"Grants, Contributions & Donations",A47005,
http://opendatacommunities.org/id/london-borough-council/sutton,London Borough of Sutton,11/01/2022,10005594,229.99, ARGOS LTD,CL&G,Resources,"Grants, Contributions & Donations",A47005,
http://opendatacommunities.org/id/london-borough-council/sutton,London Borough of Sutton,11/01/2022,10005594,113.51, ARGOS LTD,CL&G,Resources,"Grants, Contributions & Donations",A47005,
http://opendatacommunities.org/id/london-borough-council/sutton,London Borough of Sutton,11/01/2022,10005594,199.00, ARGOS LTD,CL&G,Resources,"Grants, Contributions & Donations",A47005,
http://opendatacommunities.org/id/london-borough-council/sutton,London Borough of Sutton,07/01/2022,10005594,206.95, ARGOS LTD,CL&G,Resources,"Grants, Contributions & Donations",A47005,
http://opendatacommunities.org/id/london-borough-council/sutton,London Borough of Sutton,07/01/2022,10005594,234.00, CURRYS ONLINE,CL&G,Resources,"Grants, Contributions & Donations",A47005,
http://opendatacommunities.org/id/london-borough-council/sutton,London Borough of Sutton,07/01/2022,10005594,244.00, CURRYS ONLINE,CL&G,Resources,"Grants, Contributions & Donations",A47005,
http://opendatacommunities.org/id/london-borough-council/sutton,London Borough of Sutton,05/01/2022,10005594,143.95, ARGOS LTD,CL&G,Resources,"Grants, Contributions & Donations",A47005,
http://opendatacommunities.org/id/london-borough-council/sutton,London Borough of Sutton,05/01/2022,10005594,448.15, ARGOS LTD,CL&G,Resources,"Grants, Contributions & Donations",A47005,
http://opendatacommunities.org/id/london-borough-council/sutton,London Borough of Sutton,05/01/2022,10005594,499.99, ARGOS LTD,CL&G,Resources,"Grants, Contributions & Donations",A47005,
http://opendatacommunities.org/id/london-borough-council/sutton,London Borough of Sutton,05/01/2022,10005594,400.15, ARGOS LTD,CL&G,Resources,"Grants, Contributions & Donations",A47005,
http://opendatacommunities.org/id/london-borough-council/sutton,London Borough of Sutton,06/01/2022,10005594,79.83, AMZNMKTPLACE AMAZON.CO,SPLIT - POSTURITE NUMBER SLIDE COMPACT KEYBOARD (WIRED) (95.04%),Resources,Stationery,A43015,
http://opendatacommunities.org/id/london-borough-council/sutton,London Borough of Sutton,06/01/2022,10005594,4.17, AMZNMKTPLACE AMAZON.CO,BALANCING ENTRY AMOUNT (4.96%),Resources,Stationery,A43015,
http://opendatacommunities.org/id/london-borough-council/sutton,London Borough of Sutton,06/01/2022,10005594,196.00, WWW.PAXTON.CO.UK,NET2 ACCESS CARDS REQUIRED FOR THE LONDON CANCER HUB INNOVATION GATEWAY BUILDING FOR NEW TENANTS.,Resources,Contingency,A49001,
http://opendatacommunities.org/id/london-borough-council/sutton,London Borough of Sutton,06/01/2022,10005594,183.00, CHARTERED MANAGEME,CMI MEMBERSHIP (MD),Environment Housing and Neighbourhoods,Staff Professional Membership Fees Non Payroll,A15025,
http://opendatacommunities.org/id/london-borough-council/sutton,London Borough of Sutton,12/01/2022,10005594,83.33, PRESS 2 DRESS,DRY CLEANING OF CURTAINS IN EMERGENCY ACCOMMODATION,Environment Housing and Neighbourhoods,Bed & Breakfast,A56000,
http://opendatacommunities.org/id/london-borough-council/sutton,London Borough of Sutton,04/01/2022,10005594,503.33, HOLIDAY INNS,EMERGENCY ACCOMMODATION FOR HOMELESS HOUSEHOLD,Environment Housing and Neighbourhoods,Bed & Breakfast,A56000,
http://opendatacommunities.org/id/london-borough-council/sutton,London Borough of Sutton,04/01/2022,10005594,503.33, HOLIDAY INNS,EMERGENCY ACCOMMODATION FOR HOMELESS HOUSEHOLD,Environment Housing and Neighbourhoods,Bed & Breakfast,A56000,
http://opendatacommunities.org/id/london-borough-council/sutton,London Borough of Sutton,29/12/2021,10005594,586.67, HOLIDAY INNS,EMERGENCY ACCOMMODATION FOR HOMELESS HOUSEHOLD,Environment Housing and Neighbourhoods,Bed & Breakfast,A56000,
http://opendatacommunities.org/id/london-borough-council/sutton,London Borough of Sutton,29/12/2021,10005594,586.67, HOLIDAY INNS,EMERGENCY ACCOMMODATION FOR HOMELESS HOUSEHOLD,Environment Housing and Neighbourhoods,Bed & Breakfast,A56000,
http://opendatacommunities.org/id/london-borough-council/sutton,London Borough of Sutton,16/01/2022,10005594,77.75, TESCO PFS 2965,PURCHASE OF DIESEL AS FUEL CARD WAS DECLINED FOR 'REDACTED - PERSONAL DATA',Environment Housing and Neighbourhoods,Vehicles Fuel - Support,H10110,
http://opendatacommunities.org/id/london-borough-council/sutton,London Borough of Sutton,06/01/2022,10005594,89.00, THE BCI FORUM R/T,BCI MEMBERSHIP (GP),Environment Housing and Neighbourhoods,Staff Professional Membership Fees Non Payroll,A15025,
http://opendatacommunities.org/id/london-borough-council/sutton,London Borough of Sutton,20/01/2022,10005594,64.00, UP AT THE O2,O2 CLIMB TICKETS PAYMENT,Peoples Services,C.C.A Travel & Subsistance,A61010,
http://opendatacommunities.org/id/london-borough-council/sutton,London Borough of Sutton,19/01/2022,10005594,44.00, SUTTON REGISTER OFFICE,BIRTH CERT,Peoples Services,Equipment And Materials Purchase,A40000,
http://opendatacommunities.org/id/london-borough-council/sutton,London Borough of Sutton,10/01/2022,10005594,22.00, SUTTON REGISTER OFFICE,BIRTH CERTIFICATE PURCHASE,Peoples Services,Equipment And Materials Purchase,A40000,
http://opendatacommunities.org/id/london-borough-council/sutton,London Borough of Sutton,10/01/2022,10005594,22.00, SUTTON REGISTER OFFICE,BIRTH CERTIFICATE PURCHASE,Peoples Services,Equipment And Materials Purchase,A40000,
http://opendatacommunities.org/id/london-borough-council/sutton,London Borough of Sutton,20/01/2022,10005594,27.50, SUTTON REGISTER OFFICE,BIRTH CERTIFICATE REQUIRED FOR PASSPORT APPLICATION,Peoples Services,Equipment And Materials Purchase,A40000,
http://opendatacommunities.org/id/london-borough-council/sutton,London Borough of Sutton,24/01/2022,10005594,35.67, NANDOS CROYDON VALLEY,MC AND RM ACTIVITY,Peoples Services,Miscellaneous Expenses,A49000,
http://opendatacommunities.org/id/london-borough-council/sutton,London Borough of Sutton,17/01/2022,10005594,34.00, DVLA DRIVER ONLINE,KB DL,Peoples Services,Miscellaneous Expenses,A49000,
http://opendatacommunities.org/id/london-borough-council/sutton,London Borough of Sutton,24/01/2022,10005594,906.99, SUTTON APPLIANCES,SW SET UP,Peoples Services,Set Up Costs - Children Leaving Care,A61021,
http://opendatacommunities.org/id/london-borough-council/sutton,London Borough of Sutton,05/01/2022,10005594,-38.00, ARGOS LTD,PARTIAL REFUND OF JD SET UP.,Peoples Services,Set Up Costs - Children Leaving Care,A61021,
http://opendatacommunities.org/id/london-borough-council/sutton,London Borough of Sutton,04/01/2022,10005594,6.79, AMZNMKTPLACE,SETTING UP ALLOWANCE FOR A LEAVING CARE YOUNG PERSON 6.79 A61021 G03040 9999 AMAZON (100%),Peoples Services,Set Up Costs - Children Leaving Care,A61021,
http://opendatacommunities.org/id/london-borough-council/sutton,London Borough of Sutton,02/01/2022,10005594,96.22, AMAZON.CO.UK UW66X93L5,MATTRESS REQUESTED FOR CARE LEAVER (100%),Peoples Services,Set Up Costs - Children Leaving Care,A61021,
http://opendatacommunities.org/id/london-borough-council/sutton,London Borough of Sutton,30/12/2021,10005594,75.59, AMZNMKTPLACE AMAZON.CO,SETTING UP ALLOWANCE FOR A LEAVING CARE YOUNG PERSON (100%),Peoples Services,Set Up Costs - Children Leaving Care,A61021,
http://opendatacommunities.org/id/london-borough-council/sutton,London Borough of Sutton,05/01/2022,10005594,16.99, AMZNBUSINESS GJ0SG40C5,ITEMS NEEDED FOR THE LEAVING CARE PERSON (100%),Peoples Services,Set Up Costs - Children Leaving Care,A61021,
http://opendatacommunities.org/id/london-borough-council/sutton,London Borough of Sutton,05/01/2022,10005594,24.98, AMZNBUSINESS JP45Y6G05,ITEMS NEEDED FOR THE LEAVING CARE PERSON (100%),Peoples Services,Set Up Costs - Children Leaving Care,A61021,
http://opendatacommunities.org/id/london-borough-council/sutton,London Borough of Sutton,05/01/2022,10005594,24.99, AMZNBUSINESS M37VT09E5,SETTING UP ALLOWANCE FOR A LEAVING CARE YOUNG PERSON (100%),Peoples Services,Set Up Costs - Children Leaving Care,A61021,
http://opendatacommunities.org/id/london-borough-council/sutton,London Borough of Sutton,05/01/2022,10005594,26.10, AMZNBUSINESS HM5VH7JX5,SETTING UP ALLOWANCE FOR A LEAVING CARE YOUNG PERSON (100%),Peoples Services,Set Up Costs - Children Leaving Care,A61021,
http://opendatacommunities.org/id/london-borough-council/sutton,London Borough of Sutton,06/01/2022,10005594,27.20, TENPIN.CO.UK,ACTIVITY REQUIRED FOR CONTACT,Peoples Services,Equipment And Materials Purchase,A40000,
http://opendatacommunities.org/id/london-borough-council/sutton,London Borough of Sutton,07/01/2022,10005594,"1,675.00", HOTEL AT BOOKING.COM,HOTEL NEEDED FOR CLIENT,Peoples Services,Equipment And Materials Purchase,A40000,
http://opendatacommunities.org/id/london-borough-council/sutton,London Borough of Sutton,16/01/2022,10005594,125.99, AMZNBUSINESS NT9ZR2TR5,ITEM NEEDED FOR A CLIENT A49000 G03050 (100%),Peoples Services,Miscellaneous Expenses,A49000,
http://opendatacommunities.org/id/london-borough-council/sutton,London Borough of Sutton,16/01/2022,10005594,125.99, AMZNBUSINESS 1J3SU8TM5,EQUIPMENT NEEDED FOR LEAVING CARE CHILD (100%),Peoples Services,Miscellaneous Expenses,A49000,
http://opendatacommunities.org/id/london-borough-council/sutton,London Borough of Sutton,11/01/2022,10005594,"2,423.72", WELCOME BREAK,HOTEL REQUIRED FOR A PARENT,Peoples Services,Approved Lodgings,A61000,
http://opendatacommunities.org/id/london-borough-council/sutton,London Borough of Sutton,13/01/2022,10005594,57.99, TRAVELODGE,HOTEL STAY,Peoples Services,Approved Lodgings,A61000,
http://opendatacommunities.org/id/london-borough-council/sutton,London Borough of Sutton,05/01/2022,10005594,69.00, HOTELSCOM9183975195039,HOTEL STAY,Peoples Services,Approved Lodgings,A61000,
http://opendatacommunities.org/id/london-borough-council/sutton,London Borough of Sutton,14/01/2022,10005594,34.17, FLIP OUT CROYDON,ACTIVITY FOR YOUNG PERSON AT WILLOW RISE CHILDRENS HOME,Peoples Services,Miscellaneous Expenses,A49000,
http://opendatacommunities.org/id/london-borough-council/sutton,London Borough of Sutton,18/01/2022,10005594,64.75, ASDA GROCERIES ONLINE,ASDA,Peoples Services,Miscellaneous Expenses,A49000,
http://opendatacommunities.org/id/london-borough-council/sutton,London Borough of Sutton,18/01/2022,10005594,-0.45, ASDA GROCERIES ONLINE,ASDA ITEM NOT AVAILABLE,Peoples Services,Miscellaneous Expenses,A49000,
http://opendatacommunities.org/id/london-borough-council/sutton,London Borough of Sutton,13/01/2022,10005594,44.21, ASDA GROCERIES ONLINE,SHOPPING NEEDED FOR WILLOW RISE CHILDRENS HOME,Peoples Services,Miscellaneous Expenses,A49000,
http://opendatacommunities.org/id/london-borough-council/sutton,London Borough of Sutton,06/01/2022,10005594,24.97, BUYITDIRECT CO UK,ITEM REQUIRED FOR YOUNG PERSON AT WILLOW RISE CHILDRENS HOME,Peoples Services,Miscellaneous Expenses,A49000,
http://opendatacommunities.org/id/london-borough-council/sutton,London Borough of Sutton,05/01/2022,10005594,24.35, AMZNMKTPLACE,ITEMS NEEDED FOR THE THORNTON ROAD HOME (100%),Peoples Services,Miscellaneous Expenses,A49000,
http://opendatacommunities.org/id/london-borough-council/sutton,London Borough of Sutton,05/01/2022,10005594,20.96, SUPERDRUG STORES PLC,ITEMS REQUIRED FOR THE YOUNG PERSON RESIDING AT THE WILLOW RISE CHILDRENS HOME,Peoples Services,Miscellaneous Expenses,A49000,
http://opendatacommunities.org/id/london-borough-council/sutton,London Borough of Sutton,05/01/2022,10005594,23.98, AMZNMKTPLACE,ITEMS NEEDED FOR THE THORNTON ROAD HOME (100%),Peoples Services,Miscellaneous Expenses,A49000,
http://opendatacommunities.org/id/london-borough-council/sutton,London Borough of Sutton,05/01/2022,10005594,180.00, AMAZON.CO.UK Z24TC2YU5,NETFLIX FOR WILLOW RISE CHILDRENS HOME (100%),Peoples Services,Miscellaneous Expenses,A49000,
http://opendatacommunities.org/id/london-borough-council/sutton,London Borough of Sutton,05/01/2022,10005594,49.50, TEAM SPORT KARTING,ACTIVITY WITH YOUNG PERSON AT WILLOW RISE,Peoples Services,Miscellaneous Expenses,A49000,
http://opendatacommunities.org/id/london-borough-council/sutton,London Borough of Sutton,19/01/2022,10005594,7.64, AMZNMKTPLACE,NEEDED FOR WILLOW RISE CHILDRENS HOME (100%),Peoples Services,Miscellaneous Expenses,A49000,
http://opendatacommunities.org/id/london-borough-council/sutton,London Borough of Sutton,19/01/2022,10005594,9.99, AMZNMKTPLACE,ITEM NEEDED FOR THE WILLOW RISE CHILDRENS HOME (100%),Peoples Services,Miscellaneous Expenses,A49000,
http://opendatacommunities.org/id/london-borough-council/sutton,London Borough of Sutton,24/01/2022,10005594,29.10, SP   PATHISOL,CLEANING MATERIALS,Peoples Services,Miscellaneous Expenses,A49000,
http://opendatacommunities.org/id/london-borough-council/sutton,London Borough of Sutton,21/01/2022,10005594,24.87, AIRTHRILL LONDON,ACTIVITY FOR A YOUNG PERSON,Peoples Services,Miscellaneous Expenses,A49000,
http://opendatacommunities.org/id/london-borough-council/sutton,London Borough of Sutton,31/12/2021,10005594,17.77, ARGOS LTD,ITEMS REQUIRED FOR THE NEW CHILDRENS HOME,Peoples Services,Miscellaneous Expenses,A49000,
http://opendatacommunities.org/id/london-borough-council/sutton,London Borough of Sutton,19/01/2022,10005594,24.17, IKEA LTD SHOP ONLINE,ITEMS REQUIRED FOR WILLOW RISE CHILDRENS HOME,Peoples Services,Miscellaneous Expenses,A49000,
http://opendatacommunities.org/id/london-borough-council/sutton,London Borough of Sutton,19/01/2022,10005594,24.17, IKEA LTD SHOP ONLINE,ITEMS NEEDED FOR WILLOW RISE CHILDRENS HOME,Peoples Services,Miscellaneous Expenses,A49000,
http://opendatacommunities.org/id/london-borough-council/sutton,London Borough of Sutton,07/01/2022,10005594,22.95, AMZNMKTPLACE,ITEM NEEDED FOR THE WILLOW RISE CHILDRENS HOME (100%),Peoples Services,Miscellaneous Expenses,A49000,
http://opendatacommunities.org/id/london-borough-council/sutton,London Borough of Sutton,06/01/2022,10005594,6.98, AMZNMKTPLACE,SPLIT - WHAM NON-STICK BAKING TRAY (SET OF 3 (32X23X1.5 CM)) (100%),Peoples Services,Miscellaneous Expenses,A49000,
http://opendatacommunities.org/id/london-borough-council/sutton,London Borough of Sutton,10/01/2022,10005594,34.57, BOOHOO.COM,ITEM REQUIRED FOR YOUNG PERSON AT WILLOW RISE CHILDRENS HOME,Peoples Services,Miscellaneous Expenses,A49000,
http://opendatacommunities.org/id/london-borough-council/sutton,London Borough of Sutton,10/01/2022,10005594,33.03, BOOHOO.COM,ITEM REQUIRED FOR YOUNG PERSON AT WILLOW RISE CHILDRENS HOM,Peoples Services,Miscellaneous Expenses,A49000,
http://opendatacommunities.org/id/london-borough-council/sutton,London Borough of Sutton,10/01/2022,10005594,44.30, ASDA GROCERIES ONLINE,FOOD SHOPPING FOR WILLOW RISE CHILDRENS HOME,Peoples Services,Miscellaneous Expenses,A49000,
http://opendatacommunities.org/id/london-borough-council/sutton,London Borough of Sutton,10/01/2022,10005594,-0.95, ASDA GROCERIES ONLINE,ASDA REUND,Peoples Services,Miscellaneous Expenses,A49000,
http://opendatacommunities.org/id/london-borough-council/sutton,London Borough of Sutton,11/01/2022,10005594,13.04, WWW.OXYGENFREEJUMPING.,ACTIVITY FOR A YOUNG PERSON AT WILLOW RISE CHILDRENS HOME,Peoples Services,Miscellaneous Expenses,A49000,
http://opendatacommunities.org/id/london-borough-council/sutton,London Borough of Sutton,07/01/2022,10005594,34.82, TENPIN.CO.UK,ACTIVITY REQUIRED FOR YOUNG PERSON AT WILLOW RISE CHILDRENS HOME,Peoples Services,Miscellaneous Expenses,A49000,
http://opendatacommunities.org/id/london-borough-council/sutton,London Borough of Sutton,12/01/2022,10005594,9.99, AMZNMKTPLACE AMAZON.CO,ITEMS NEEDED FOR WILLOW RISE CHILDRENS HOME (100%),Peoples Services,Miscellaneous Expenses,A49000,
http://opendatacommunities.org/id/london-borough-council/sutton,London Borough of Sutton,17/01/2022,10005594,159.90, ZOOM.US 888-799-9666,STORAGE NEEDED FOR CLIENT,Peoples Services,Subscriptions,A47010,
http://opendatacommunities.org/id/london-borough-council/sutton,London Borough of Sutton,30/12/2021,10005594,159.90, ZOOM.US 888-799-9666,ZOOM SUBSCRIPTION NEEDED FOR A LARGE TEAM,Peoples Services,Subscriptions,A47010,
http://opendatacommunities.org/id/london-borough-council/sutton,London Borough of Sutton,24/01/2022,10005594,27.50, L B SOUTHWARK - INT,BIRTH CERTIFICATE REQUIRED FOR A CHILD LOOKED AFTER,Peoples Services,Equipment And Materials Purchase,A40000,
http://opendatacommunities.org/id/london-borough-council/sutton,London Borough of Sutton,19/01/2022,10005594,47.00, GEN REGISTER OFFICE,BIRTH CERT,Peoples Services,Equipment And Materials Purchase,A40000,
http://opendatacommunities.org/id/london-borough-council/sutton,London Borough of Sutton,19/01/2022,10005594,14.00, GEN REGISTER OFFICE,BIRTH CERT,Peoples Services,Equipment And Materials Purchase,A40000,
http://opendatacommunities.org/id/london-borough-council/sutton,London Borough of Sutton,17/01/2022,10005594,127.00, HM PASSPORT OFFICE,PASSPORT PAYMENT PURCHASE,Peoples Services,C.C.A Travel & Subsistance,A61010,
http://opendatacommunities.org/id/london-borough-council/sutton,London Borough of Sutton,16/01/2022,10005594,7.99, AMZNMKTPLACE,ITEMS NEEDED FOR THE SUTTON FAMILY CENTRE SITE (50.03%),Peoples Services,Equipment And Materials Purchase,A40000,
http://opendatacommunities.org/id/london-borough-council/sutton,London Borough of Sutton,16/01/2022,10005594,7.98, AMZNMKTPLACE,ITEMS NEEDED FOR THE SUTTON FAMILY CENTRE SITE (49.97%),Peoples Services,Equipment And Materials Purchase,A40000,
http://opendatacommunities.org/id/london-borough-council/sutton,London Borough of Sutton,16/01/2022,10005594,6.49, AMZNBUSINESS 4L5TE5C35,ITEMS NEEDED FOR THE SUTTON FAMILY CENTRE SITE  A40000 G03120 9999 - AMAZON (100%),Peoples Services,Equipment And Materials Purchase,A40000,
http://opendatacommunities.org/id/london-borough-council/sutton,London Borough of Sutton,12/01/2022,10005594,66.00, SUTTON REGISTER OFFICE,BIRTH CERT,Peoples Services,Equipment And Materials Purchase,A40000,
http://opendatacommunities.org/id/london-borough-council/sutton,London Borough of Sutton,20/01/2022,10005594,11.00, SUTTON REGISTER OFFICE,BIRTH CERTIFICATE PAYMENT,Peoples Services,Equipment And Materials Purchase,A40000,
http://opendatacommunities.org/id/london-borough-council/sutton,London Borough of Sutton,13/01/2022,10005594,199.75, AMZNMKTPLACE AMAZON.CO,SET UP (100%),Peoples Services,Miscellaneous Expenses,A49000,
http://opendatacommunities.org/id/london-borough-council/sutton,London Borough of Sutton,14/01/2022,10005594,9.86, AMZNMKTPLACE,ITEMS REQUIRED FOR SUTTON FAMILY CENTRE (100%),Peoples Services,Miscellaneous Expenses,A49000,
http://opendatacommunities.org/id/london-borough-council/sutton,London Borough of Sutton,13/01/2022,10005594,49.99, AMZNMKTPLACE AMAZON.CO,ITEM NEEDED FOR A CLIENT (86.75%),Peoples Services,Client Care/Assistance,A61011,
http://opendatacommunities.org/id/london-borough-council/sutton,London Borough of Sutton,13/01/2022,10005594,9.45, AMZNMKTPLACE AMAZON.CO,BALANCING ENTRY AMOUNT (13.25%),Peoples Services,Client Care/Assistance,A61011,
http://opendatacommunities.org/id/london-borough-council/sutton,London Borough of Sutton,26/01/2022,10005594,158.99, AMZNMKTPLACE,PHONE REQUIRED FOR A CLIENT (100%),Peoples Services,Client Care/Assistance,A61011,
http://opendatacommunities.org/id/london-borough-council/sutton,London Borough of Sutton,25/01/2022,10005594,41.49, AMZNMKTPLACE,MOBILE PHONE REQUIRED FOR A CLIENT (100%),Peoples Services,Client Care/Assistance,A61011,
http://opendatacommunities.org/id/london-borough-council/sutton,London Borough of Sutton,12/01/2022,10005594,232.46, ARGOS LTD,ITEMS REQUESTED BY SOCIAL WORKER TO SUPPORT A FAMILY,Peoples Services,Client Care/Assistance,A61011,
http://opendatacommunities.org/id/london-borough-council/sutton,London Borough of Sutton,12/01/2022,10005594,555.83, AO RETAIL LIMITED,REQUESTED BY SOCIAL WORKER,Peoples Services,Client Care/Assistance,A61011,
http://opendatacommunities.org/id/london-borough-council/sutton,London Borough of Sutton,23/01/2022,10005594,70.00, FACEBK  3A5L2AXG32,FACEBOOK ADVERTISING FOR FOSTERING RECRUITMENT,Peoples Services,Recruitment Expenses,A15026,
http://opendatacommunities.org/id/london-borough-council/sutton,London Borough of Sutton,06/01/2022,10005594,240.00, DOCUSIGN INC. GBP,"DOCUSIGN FOR SPECIAL GUARDIAN TEAM, ANNUAL SUBSCRIPTION",Peoples Services,Business Support Support,H10011,
http://opendatacommunities.org/id/london-borough-council/sutton,London Borough of Sutton,07/01/2022,10005594,30.00, MARKS&SPENCER PLC,FLOWERS FOR LEAVER,Peoples Services,Miscellaneous Expenses,A49000,
http://opendatacommunities.org/id/london-borough-council/sutton,London Borough of Sutton,10/01/2022,10005594,-17.50, WALLINGTON CARS & COUR,REFUND OF TAXI FOR CLLR PASCOE ATTENDING THORNTON'S CHILDREN'S CENTRE ON THE 1ST DECEMBER 2021 AS HE DIDN'T ATTEND.,Peoples Services,Hire of Transport - Non Staff,A32000,
http://opendatacommunities.org/id/london-borough-council/sutton,London Borough of Sutton,20/01/2022,10005594,415.50, PREMIER INN,SUTTON PREMIER INN,Peoples Services,C.C.A Travel & Subsistance,A61010,
http://opendatacommunities.org/id/london-borough-council/sutton,London Borough of Sutton,20/01/2022,10005594,-415.50, PREMIER INN,REFUND SUTTON PREMIER INN,Peoples Services,C.C.A Travel & Subsistance,A61010,
http://opendatacommunities.org/id/london-borough-council/sutton,London Borough of Sutton,20/01/2022,10005594,525.00, PREMIER INN,HOTEL ACCOMMODATION PAYMENT,Peoples Services,C.C.A Travel & Subsistance,A61010,
http://opendatacommunities.org/id/london-borough-council/sutton,London Borough of Sutton,20/01/2022,10005594,224.50, PREMIER INN,HOTEL ACCOMMODATION PURCHASE,Peoples Services,C.C.A Travel & Subsistance,A61010,
http://opendatacommunities.org/id/london-borough-council/sutton,London Borough of Sutton,21/01/2022,10005594,229.17, STARLINE TAXIS,TAXI REQUIRED FOR SOCIAL WORKER TO MOVE ITEMS,Peoples Services,C.C.A Travel & Subsistance,A61010,
http://opendatacommunities.org/id/london-borough-council/sutton,London Borough of Sutton,07/01/2022,10005594,30.17, SUMUP   WORTHING TAXIS,TAXI REQUIRED FOR SOCIAL WORKER,Peoples Services,C.C.A Travel & Subsistance,A61010,
http://opendatacommunities.org/id/london-borough-council/sutton,London Borough of Sutton,07/01/2022,10005594,450.00, PREMIER INN,HOTEL BOOKING FOR CONTACT SUPERVISED CONTACT,Peoples Services,Client Care/Assistance,A61011,
http://opendatacommunities.org/id/london-borough-council/sutton,London Borough of Sutton,22/01/2022,10005594,"1,494.00", EASTWOOD HALL,14 NIGHTS HOTEL ACCOMODATION FOR ADULT AND CHILD,Peoples Services,Client Care/Assistance,A61011,
http://opendatacommunities.org/id/london-borough-council/sutton,London Borough of Sutton,30/12/2021,10005594,80.00, THE BURTON HOTEL,HOTAL COSTS,Peoples Services,Client Care/Assistance,A61011,
http://opendatacommunities.org/id/london-borough-council/sutton,London Borough of Sutton,21/01/2022,10005594,59.51, UKVI,FOREIGN EXCHANGE FEE FOR HR VISA,Peoples Services,Client Care/Assistance,A61011,
http://opendatacommunities.org/id/london-borough-council/sutton,London Borough of Sutton,21/01/2022,10005594,11.12, UKVI,FOREIGN EXCHANGE FEE FOR HR VISA,Peoples Services,Client Care/Assistance,A61011,
http://opendatacommunities.org/id/london-borough-council/sutton,London Borough of Sutton,20/01/2022,10005594,404.66, UKVI,VISA APPLICATION FOR HR PAYMENT,Peoples Services,Client Care/Assistance,A61011,
http://opendatacommunities.org/id/london-borough-council/sutton,London Borough of Sutton,20/01/2022,10005594,"2,164.07", IMM HEALTH SURCHAR,VISA APPLICATION FOR HR PAYMENT,Peoples Services,Client Care/Assistance,A61011,
http://opendatacommunities.org/id/london-borough-council/sutton,London Borough of Sutton,03/01/2022,10005594,89.03, STORAGEMART UK A-5A188,STORAGE PAYMENT FOR A CLIENT,Peoples Services,Storage And Archiving Services,A44085,
http://opendatacommunities.org/id/london-borough-council/sutton,London Borough of Sutton,25/01/2022,10005594,159.00, RAFF ELECTRICAL,FRIDGE PAYMENT,Peoples Services,Equipment And Materials Purchase,A40000,
http://opendatacommunities.org/id/london-borough-council/sutton,London Borough of Sutton,31/12/2021,10005594,80.00, ACCESS SUTTON,SELF STORAGE,Peoples Services,Client Care/Assistance,A61011,
http://opendatacommunities.org/id/london-borough-council/sutton,London Borough of Sutton,11/01/2022,10005594,250.00, PURELY BABY UK,BAGS TO DISPOSE OF SOILED PPE,Peoples Services,Health & Safety Equipment,A40080,
http://opendatacommunities.org/id/london-borough-council/sutton,London Borough of Sutton,13/01/2022,10005594,39.16, SP   ARENA FLOWERS,FLOWERS TO BE DELIVERED TO MEMBER OF STAFF WHO SUFFERED INDUSTRIAL INJURY,Peoples Services,Miscellaneous Expenses,A49000,
http://opendatacommunities.org/id/london-borough-council/sutton,London Borough of Sutton,14/01/2022,10005594,645.83, CITIZENM AMSTERDAM SOU,AWAYDAY ON THE 6TH MAY 2022 FOR NICK IRELAND,Peoples Services,Staff Development And Training,A15022,
http://opendatacommunities.org/id/london-borough-council/sutton,London Borough of Sutton,07/01/2022,10005594,83.08, COSTCO WHOLESALE #121,VENDING MACHINE STOCK,Peoples Services,Provisions,A41006,
http://opendatacommunities.org/id/london-borough-council/sutton,London Borough of Sutton,01/01/2022,10005594,18.00, GOOGLE CLOUD EMEA LIMI,GOOGLE CLOUD EMEA DEC 21 4040725610,Health and Wellbeing,Subscriptions,A47010,
http://opendatacommunities.org/id/london-borough-council/sutton,London Borough of Sutton,04/01/2022,10005594,229.99, 123 REG LTD,IT MAIN SSL CERT FOR WEBSITE,Health and Wellbeing,Subscriptions,A47010,
http://opendatacommunities.org/id/london-borough-council/sutton,London Borough of Sutton,30/12/2021,10005594,66.33, MAILCHIMP,MAILCHIMP 301221 66.33,Health and Wellbeing,Publicity,A44266,
http://opendatacommunities.org/id/london-borough-council/sutton,London Borough of Sutton,20/01/2022,10005594,518.00, INSTANTPRINT.CO.UK,INSTANTPRINT 5K COURSE GUIDE RERUN 200122 518.00,Health and Wellbeing,Publicity,A44266,
http://opendatacommunities.org/id/london-borough-council/sutton,London Borough of Sutton,11/01/2022,10005594,3.97, JOTFORM INC.,JOTFORM 100122 $195USD (PART 2),Health and Wellbeing,Publicity,A44266,
http://opendatacommunities.org/id/london-borough-council/sutton,London Borough of Sutton,10/01/2022,10005594,144.22, JOTFORM INC.,JOTFORM 100122 $195USD (PART 1),Health and Wellbeing,Publicity,A44266,
http://opendatacommunities.org/id/london-borough-council/sutton,London Borough of Sutton,08/01/2022,10005594,47.99, ADOBE STOCK,ADOBE 070122 47.99,Health and Wellbeing,Publicity,A44266,
http://opendatacommunities.org/id/london-borough-council/sutton,London Borough of Sutton,07/01/2022,10005594,102.98, WWW.INSTANTPRINT.C,INSTANTPRINT 070122 BUS CARDS & A3 ROLLERS 123.58,Health and Wellbeing,Publicity,A44266,
http://opendatacommunities.org/id/london-borough-council/sutton,London Borough of Sutton,17/01/2022,10005594,77.13, COSTCO WHOLESALE #121,VENDING MACHINE SUPPLIES,Health and Wellbeing,Provisions,A41006,
http://opendatacommunities.org/id/london-borough-council/sutton,London Borough of Sutton,12/01/2022,10005594,83.22, SCREWFIX DIRECT,WOODWORK TOOLS - RL,Health and Wellbeing,Equipment And Materials Purchase,A40000,
http://opendatacommunities.org/id/london-borough-council/sutton,London Borough of Sutton,05/01/2022,10005594,387.50, INSTANTPRINT.CO.UK,INSTANTPRINT BANNERS INSURANCE 050122 465.00,Health and Wellbeing,Insurance Claims,A44261,
http://opendatacommunities.org/id/london-borough-council/sutton,London Borough of Sutton,21/01/2022,10005594,170.58, EBAY COMMERCE UK LTD,BEAUTY L2 TEXT BOOKS,Health and Wellbeing,Books,A43050,
http://opendatacommunities.org/id/london-borough-council/sutton,London Borough of Sutton,09/01/2022,10005594,14.26, LIDL UK,COOKERY,Health and Wellbeing,Equipment And Materials Purchase,A40000,
http://opendatacommunities.org/id/london-borough-council/sutton,London Borough of Sutton,24/01/2022,10005594,11.59, SAINSBURYS S/MKTS,COOKERY,Health and Wellbeing,Equipment And Materials Purchase,A40000,
http://opendatacommunities.org/id/london-borough-council/sutton,London Borough of Sutton,24/01/2022,10005594,4.99, WALLINGTON BARGAIN BUY,COOKERY,Health and Wellbeing,Equipment And Materials Purchase,A40000,
http://opendatacommunities.org/id/london-borough-council/sutton,London Borough of Sutton,19/01/2022,10005594,24.90, SAINSBURYS S/MKTS,COOKERY,Health and Wellbeing,Equipment And Materials Purchase,A40000,
http://opendatacommunities.org/id/london-borough-council/sutton,London Borough of Sutton,17/01/2022,10005594,12.37, SAINSBURYS S/MKTS,COOKERY,Health and Wellbeing,Equipment And Materials Purchase,A40000,
http://opendatacommunities.org/id/london-borough-council/sutton,London Borough of Sutton,17/01/2022,10005594,2.99, WALLINGTON BARGAIN BUY,COOKERY,Health and Wellbeing,Equipment And Materials Purchase,A40000,
http://opendatacommunities.org/id/london-borough-council/sutton,London Borough of Sutton,12/01/2022,10005594,20.52, SAINSBURYS S/MKTS,COOKERY,Health and Wellbeing,Equipment And Materials Purchase,A40000,
http://opendatacommunities.org/id/london-borough-council/sutton,London Borough of Sutton,10/01/2022,10005594,1.99, WALLINGTON BARGAIN BUY,COOKERY,Health and Wellbeing,Equipment And Materials Purchase,A40000,
http://opendatacommunities.org/id/london-borough-council/sutton,London Borough of Sutton,10/01/2022,10005594,9.00, SAINSBURYS S/MKTS,COOKERY,Health and Wellbeing,Equipment And Materials Purchase,A40000,
http://opendatacommunities.org/id/london-borough-council/sutton,London Borough of Sutton,13/01/2022,10005594,9.99, AMAZON.CO.UK VJ9E41HP5,SPLIT - CAN BEARS SKI?: 1 (100%),Peoples Services,LAC - Education,A44280,
http://opendatacommunities.org/id/london-borough-council/sutton,London Borough of Sutton,13/01/2022,10005594,9.99, AMAZON.CO.UK EE5YD4OC5,SPLIT - CAN BEARS SKI?: 1 (100%),Peoples Services,LAC - Education,A44280,
http://opendatacommunities.org/id/london-borough-council/sutton,London Borough of Sutton,13/01/2022,10005594,9.99, AMAZON.CO.UK BR5XS13A5,SPLIT - CAN BEARS SKI?: 1 (100%),Peoples Services,LAC - Education,A44280,
http://opendatacommunities.org/id/london-borough-council/sutton,London Borough of Sutton,19/01/2022,10005594,7.51, AMAZON.CO.UK RP0BQ0TC5,SPLIT - SPEECHLESS (100%),Peoples Services,LAC - Education,A44280,
http://opendatacommunities.org/id/london-borough-council/sutton,London Borough of Sutton,19/01/2022,10005594,7.51, AMAZON.CO.UK HT6G93PI5,SPLIT - SPEECHLESS (100%),Peoples Services,LAC - Education,A44280,
http://opendatacommunities.org/id/london-borough-council/sutton,London Borough of Sutton,19/01/2022,10005594,7.51, AMAZON.CO.UK QN1OY5PM5,SPLIT - SPEECHLESS (100%),Peoples Services,LAC - Education,A44280,
http://opendatacommunities.org/id/london-borough-council/sutton,London Borough of Sutton,19/01/2022,10005594,7.34, AMAZON.CO.UK S78UL2SE5,"SPLIT - I AM NOT A LABEL: 34 DISABLED ARTISTS, THINKERS, ATHLETES AND ACTIVISTS FROM PAST AND PRESENT (100%)",Peoples Services,LAC - Education,A44280,
http://opendatacommunities.org/id/london-borough-council/sutton,London Borough of Sutton,18/01/2022,10005594,7.51, AMAZON.CO.UK 4B5U96UA5,SPLIT - SPEECHLESS (100%),Peoples Services,LAC - Education,A44280,
http://opendatacommunities.org/id/london-borough-council/sutton,London Borough of Sutton,23/01/2022,10005594,6.95, AMAZON.CO.UK JZ5FX2F05,SPLIT - SPEECHLESS (100%),Peoples Services,LAC - Education,A44280,
http://opendatacommunities.org/id/london-borough-council/sutton,London Borough of Sutton,21/01/2022,10005594,6.95, AMAZON.CO.UK 534AM30F5,SPLIT - SPEECHLESS (100%),Peoples Services,LAC - Education,A44280,
http://opendatacommunities.org/id/london-borough-council/sutton,London Borough of Sutton,13/01/2022,10005594,9.99, AMAZON.CO.UK II5NQ1U45,SPLIT - CAN BEARS SKI?: 1 (100%),Peoples Services,LAC - Education,A44280,
http://opendatacommunities.org/id/london-borough-council/sutton,London Borough of Sutton,23/01/2022,10005594,6.95, AMAZON.CO.UK 423OR3JB5,SPLIT - SPEECHLESS (100%),Peoples Services,LAC - Education,A44280,
http://opendatacommunities.org/id/london-borough-council/sutton,London Borough of Sutton,23/01/2022,10005594,6.95, AMAZON.CO.UK 4I4HF1945,SPLIT - SPEECHLESS (100%),Peoples Services,LAC - Education,A44280,
http://opendatacommunities.org/id/london-borough-council/sutton,London Borough of Sutton,23/01/2022,10005594,6.95, AMAZON.CO.UK V44BZ5XJ5,SPLIT - SPEECHLESS (100%),Peoples Services,LAC - Education,A44280,
http://opendatacommunities.org/id/london-borough-council/sutton,London Borough of Sutton,23/01/2022,10005594,6.95, AMAZON.CO.UK 5S6Q82E75,SPLIT - SPEECHLESS (100%),Peoples Services,LAC - Education,A44280,
http://opendatacommunities.org/id/london-borough-council/sutton,London Borough of Sutton,22/01/2022,10005594,6.95, AMAZON.CO.UK L28C07A15,SPLIT - SPEECHLESS (100%),Peoples Services,LAC - Education,A44280,
http://opendatacommunities.org/id/london-borough-council/sutton,London Borough of Sutton,22/01/2022,10005594,6.95, AMAZON.CO.UK QW3CL3PU5,SPLIT - SPEECHLESS (100%),Peoples Services,LAC - Education,A44280,
http://opendatacommunities.org/id/london-borough-council/sutton,London Borough of Sutton,13/01/2022,10005594,9.99, AMAZON.CO.UK 0X0QJ2KH5,SPLIT - CAN BEARS SKI?: 1 (100%),Peoples Services,LAC - Education,A44280,
http://opendatacommunities.org/id/london-borough-council/sutton,London Borough of Sutton,13/01/2022,10005594,9.99, AMAZON.CO.UK GD9F709U5,SPLIT - CAN BEARS SKI?: 1 (100%),Peoples Services,LAC - Education,A44280,
http://opendatacommunities.org/id/london-borough-council/sutton,London Borough of Sutton,13/01/2022,10005594,9.99, AMAZON.CO.UK ZT8NF2DG5,SPLIT - CAN BEARS SKI?: 1 (100%),Peoples Services,LAC - Education,A44280,
http://opendatacommunities.org/id/london-borough-council/sutton,London Borough of Sutton,13/01/2022,10005594,9.99, AMAZON.CO.UK EH05A58W5,SPLIT - CAN BEARS SKI?: 1 (100%),Peoples Services,LAC - Education,A44280,
http://opendatacommunities.org/id/london-borough-council/sutton,London Borough of Sutton,13/01/2022,10005594,9.99, AMAZON.CO.UK E02EA9MK5,SPLIT - CAN BEARS SKI?: 1 (100%),Peoples Services,LAC - Education,A44280,
http://opendatacommunities.org/id/london-borough-council/sutton,London Borough of Sutton,13/01/2022,10005594,9.99, AMAZON.CO.UK QH34W7395,SPLIT - CAN BEARS SKI?: 1 (100%),Peoples Services,LAC - Education,A44280,
http://opendatacommunities.org/id/london-borough-council/sutton,London Borough of Sutton,23/01/2022,10005594,6.95, AMAZON.CO.UK ON7ZH22N5,SPLIT - SPEECHLESS (100%),Peoples Services,LAC - Education,A44280,
http://opendatacommunities.org/id/london-borough-council/sutton,London Borough of Sutton,23/01/2022,10005594,6.95, AMAZON.CO.UK KO8EE0PO5,SPLIT - SPEECHLESS (100%),Peoples Services,LAC - Education,A44280,
http://opendatacommunities.org/id/london-borough-council/sutton,London Borough of Sutton,23/01/2022,10005594,6.95, AMAZON.CO.UK IM2D02AT5,SPLIT - SPEECHLESS (100%),Peoples Services,LAC - Education,A44280,
http://opendatacommunities.org/id/london-borough-council/sutton,London Borough of Sutton,23/01/2022,10005594,6.95, AMAZON.CO.UK SJ4MA8085,SPLIT - SPEECHLESS (100%),Peoples Services,LAC - Education,A44280,
http://opendatacommunities.org/id/london-borough-council/sutton,London Borough of Sutton,23/01/2022,10005594,6.95, AMAZON.CO.UK 985949IJ5,SPLIT - SPEECHLESS (100%),Peoples Services,LAC - Education,A44280,
http://opendatacommunities.org/id/london-borough-council/sutton,London Borough of Sutton,23/01/2022,10005594,6.95, AMAZON.CO.UK XC4R871U5,SPLIT - SPEECHLESS (100%),Peoples Services,LAC - Education,A44280,
http://opendatacommunities.org/id/london-borough-council/sutton,London Borough of Sutton,23/01/2022,10005594,6.95, AMAZON.CO.UK Q64EA43F5,SPLIT - SPEECHLESS (100%),Peoples Services,LAC - Education,A44280,
http://opendatacommunities.org/id/london-borough-council/sutton,London Borough of Sutton,23/01/2022,10005594,6.95, AMAZON.CO.UK S699F5IN5,SPLIT - SPEECHLESS (100%),Peoples Services,LAC - Education,A44280,
http://opendatacommunities.org/id/london-borough-council/sutton,London Borough of Sutton,23/01/2022,10005594,6.95, AMAZON.CO.UK 6F7Q99VG5,SPLIT - SPEECHLESS (100%),Peoples Services,LAC - Education,A44280,
http://opendatacommunities.org/id/london-borough-council/sutton,London Borough of Sutton,23/01/2022,10005594,6.95, AMAZON.CO.UK 5Y85577K5,SPLIT - SPEECHLESS (100%),Peoples Services,LAC - Education,A44280,
http://opendatacommunities.org/id/london-borough-council/sutton,London Borough of Sutton,18/01/2022,10005594,7.34, AMAZON.CO.UK PV2CP5UA5,"SPLIT - I AM NOT A LABEL: 34 DISABLED ARTISTS, THINKERS, ATHLETES AND ACTIVISTS FROM PAST AND PRESENT (100%)",Peoples Services,LAC - Education,A44280,
http://opendatacommunities.org/id/london-borough-council/sutton,London Borough of Sutton,23/01/2022,10005594,6.95, AMAZON.CO.UK 6I0KY5D95,SPLIT - SPEECHLESS (100%),Peoples Services,LAC - Education,A44280,
http://opendatacommunities.org/id/london-borough-council/sutton,London Borough of Sutton,22/01/2022,10005594,6.95, AMAZON.CO.UK 8P2F62BA5,SPLIT - SPEECHLESS (100%),Peoples Services,LAC - Education,A44280,
http://opendatacommunities.org/id/london-borough-council/sutton,London Borough of Sutton,22/01/2022,10005594,6.95, AMAZON.CO.UK FV3XZ23I5,SPLIT - SPEECHLESS (100%),Peoples Services,LAC - Education,A44280,
http://opendatacommunities.org/id/london-borough-council/sutton,London Borough of Sutton,21/01/2022,10005594,6.95, AMAZON.CO.UK Y34T00A35,SPLIT - SPEECHLESS (100%),Peoples Services,LAC - Education,A44280,
http://opendatacommunities.org/id/london-borough-council/sutton,London Borough of Sutton,21/01/2022,10005594,6.95, AMAZON.CO.UK K97YT7C35,SPLIT - SPEECHLESS (100%),Peoples Services,LAC - Education,A44280,
http://opendatacommunities.org/id/london-borough-council/sutton,London Borough of Sutton,21/01/2022,10005594,6.95, AMAZON.CO.UK Q612E16D5,SPLIT - SPEECHLESS (100%),Peoples Services,LAC - Education,A44280,
http://opendatacommunities.org/id/london-borough-council/sutton,London Borough of Sutton,21/01/2022,10005594,6.95, AMAZON.CO.UK Z35DK0XS5,SPLIT - SPEECHLESS (100%),Peoples Services,LAC - Education,A44280,
http://opendatacommunities.org/id/london-borough-council/sutton,London Borough of Sutton,18/01/2022,10005594,7.34, AMAZON.CO.UK ZT0R67O15,"SPLIT - I AM NOT A LABEL: 34 DISABLED ARTISTS, THINKERS, ATHLETES AND ACTIVISTS FROM PAST AND PRESENT (100%)",Peoples Services,LAC - Education,A44280,
http://opendatacommunities.org/id/london-borough-council/sutton,London Borough of Sutton,18/01/2022,10005594,7.34, AMAZON.CO.UK TB4KI1O95,"SPLIT - I AM NOT A LABEL: 34 DISABLED ARTISTS, THINKERS, ATHLETES AND ACTIVISTS FROM PAST AND PRESENT (100%)",Peoples Services,LAC - Education,A44280,
http://opendatacommunities.org/id/london-borough-council/sutton,London Borough of Sutton,18/01/2022,10005594,7.34, AMAZON.CO.UK HE7VO4115,"SPLIT - I AM NOT A LABEL: 34 DISABLED ARTISTS, THINKERS, ATHLETES AND ACTIVISTS FROM PAST AND PRESENT (100%)",Peoples Services,LAC - Education,A44280,
http://opendatacommunities.org/id/london-borough-council/sutton,London Borough of Sutton,23/01/2022,10005594,6.95, AMAZON.CO.UK 6U83L8IO5,SPLIT - SPEECHLESS (100%),Peoples Services,LAC - Education,A44280,
http://opendatacommunities.org/id/london-borough-council/sutton,London Borough of Sutton,23/01/2022,10005594,6.95, AMAZON.CO.UK KY9406DM5,SPLIT - SPEECHLESS (100%),Peoples Services,LAC - Education,A44280,
http://opendatacommunities.org/id/london-borough-council/sutton,London Borough of Sutton,23/01/2022,10005594,6.95, AMAZON.CO.UK 7174P45I5,SPLIT - SPEECHLESS (100%),Peoples Services,LAC - Education,A44280,
http://opendatacommunities.org/id/london-borough-council/sutton,London Borough of Sutton,23/01/2022,10005594,6.95, AMAZON.CO.UK 6Z4400WB5,SPLIT - SPEECHLESS (100%),Peoples Services,LAC - Education,A44280,
http://opendatacommunities.org/id/london-borough-council/sutton,London Borough of Sutton,23/01/2022,10005594,6.95, AMAZON.CO.UK LA8SE9SO5,SPLIT - SPEECHLESS (100%),Peoples Services,LAC - Education,A44280,
http://opendatacommunities.org/id/london-borough-council/sutton,London Borough of Sutton,23/01/2022,10005594,6.95, AMAZON.CO.UK LV88H7025,SPLIT - SPEECHLESS (100%),Peoples Services,LAC - Education,A44280,
http://opendatacommunities.org/id/london-borough-council/sutton,London Borough of Sutton,23/01/2022,10005594,6.95, AMAZON.CO.UK 7T0939EP5,SPLIT - SPEECHLESS (100%),Peoples Services,LAC - Education,A44280,
http://opendatacommunities.org/id/london-borough-council/sutton,London Borough of Sutton,21/01/2022,10005594,6.95, AMAZON.CO.UK 5A21U7EG5,SPLIT - SPEECHLESS (100%),Peoples Services,LAC - Education,A44280,
http://opendatacommunities.org/id/london-borough-council/sutton,London Borough of Sutton,21/01/2022,10005594,6.95, AMAZON.CO.UK EM0NZ4O85,SPLIT - SPEECHLESS (100%),Peoples Services,LAC - Education,A44280,
http://opendatacommunities.org/id/london-borough-council/sutton,London Borough of Sutton,21/01/2022,10005594,6.95, AMAZON.CO.UK 6F44S5PD5,SPLIT - SPEECHLESS (100%),Peoples Services,LAC - Education,A44280,
http://opendatacommunities.org/id/london-borough-council/sutton,London Borough of Sutton,21/01/2022,10005594,6.95, AMAZON.CO.UK U34OY7Y05,SPLIT - SPEECHLESS (100%),Peoples Services,LAC - Education,A44280,
http://opendatacommunities.org/id/london-borough-council/sutton,London Borough of Sutton,21/01/2022,10005594,6.95, AMAZON.CO.UK JB6OJ98O5,SPLIT - SPEECHLESS (100%),Peoples Services,LAC - Education,A44280,
http://opendatacommunities.org/id/london-borough-council/sutton,London Borough of Sutton,21/01/2022,10005594,6.95, AMAZON.CO.UK JY7JX4BU5,SPLIT - SPEECHLESS (100%),Peoples Services,LAC - Education,A44280,
http://opendatacommunities.org/id/london-borough-council/sutton,London Borough of Sutton,18/01/2022,10005594,7.51, AMAZON.CO.UK 7O6QZ8TQ5,SPLIT - SPEECHLESS (100%),Peoples Services,LAC - Education,A44280,
http://opendatacommunities.org/id/london-borough-council/sutton,London Borough of Sutton,18/01/2022,10005594,7.34, AMAZON.CO.UK IX4KK5B55,"SPLIT - I AM NOT A LABEL: 34 DISABLED ARTISTS, THINKERS, ATHLETES AND ACTIVISTS FROM PAST AND PRESENT (100%)",Peoples Services,LAC - Education,A44280,
http://opendatacommunities.org/id/london-borough-council/sutton,London Borough of Sutton,18/01/2022,10005594,7.34, AMAZON.CO.UK H766B2795,"SPLIT - I AM NOT A LABEL: 34 DISABLED ARTISTS, THINKERS, ATHLETES AND ACTIVISTS FROM PAST AND PRESENT (100%)",Peoples Services,LAC - Education,A44280,
http://opendatacommunities.org/id/london-borough-council/sutton,London Borough of Sutton,18/01/2022,10005594,7.34, AMAZON.CO.UK LY1WC80N5,"SPLIT - I AM NOT A LABEL: 34 DISABLED ARTISTS, THINKERS, ATHLETES AND ACTIVISTS FROM PAST AND PRESENT (100%)",Peoples Services,LAC - Education,A44280,
http://opendatacommunities.org/id/london-borough-council/sutton,London Borough of Sutton,18/01/2022,10005594,7.34, AMAZON.CO.UK FY9ES3EV5,"SPLIT - I AM NOT A LABEL: 34 DISABLED ARTISTS, THINKERS, ATHLETES AND ACTIVISTS FROM PAST AND PRESENT (100%)",Peoples Services,LAC - Education,A44280,
http://opendatacommunities.org/id/london-borough-council/sutton,London Borough of Sutton,18/01/2022,10005594,7.34, AMAZON.CO.UK KX8WJ9QH5,"SPLIT - I AM NOT A LABEL: 34 DISABLED ARTISTS, THINKERS, ATHLETES AND ACTIVISTS FROM PAST AND PRESENT (100%)",Peoples Services,LAC - Education,A44280,
http://opendatacommunities.org/id/london-borough-council/sutton,London Borough of Sutton,18/01/2022,10005594,7.34, AMAZON.CO.UK SL7ZK4GB5,"SPLIT - I AM NOT A LABEL: 34 DISABLED ARTISTS, THINKERS, ATHLETES AND ACTIVISTS FROM PAST AND PRESENT (100%)",Peoples Services,LAC - Education,A44280,
http://opendatacommunities.org/id/london-borough-council/sutton,London Borough of Sutton,13/01/2022,10005594,9.99, AMAZON.CO.UK HO89Y5LB5,SPLIT - CAN BEARS SKI?: 1 (100%),Peoples Services,LAC - Education,A44280,
http://opendatacommunities.org/id/london-borough-council/sutton,London Borough of Sutton,21/01/2022,10005594,6.95, AMAZON.CO.UK BD0LX8KJ5,SPLIT - SPEECHLESS (100%),Peoples Services,LAC - Education,A44280,
http://opendatacommunities.org/id/london-borough-council/sutton,London Borough of Sutton,21/01/2022,10005594,6.95, AMAZON.CO.UK ZK9WV60O5,SPLIT - SPEECHLESS (100%),Peoples Services,LAC - Education,A44280,
http://opendatacommunities.org/id/london-borough-council/sutton,London Borough of Sutton,21/01/2022,10005594,6.95, AMAZON.CO.UK OR8L74P35,SPLIT - SPEECHLESS (100%),Peoples Services,LAC - Education,A44280,
http://opendatacommunities.org/id/london-borough-council/sutton,London Borough of Sutton,21/01/2022,10005594,6.95, AMAZON.CO.UK JS2DF8WR5,SPLIT - SPEECHLESS (100%),Peoples Services,LAC - Education,A44280,
http://opendatacommunities.org/id/london-borough-council/sutton,London Borough of Sutton,21/01/2022,10005594,6.95, AMAZON.CO.UK PI5ZI2JY5,SPLIT - SPEECHLESS (100%),Peoples Services,LAC - Education,A44280,
http://opendatacommunities.org/id/london-borough-council/sutton,London Borough of Sutton,21/01/2022,10005594,6.95, AMAZON.CO.UK 3Q3PF44W5,SPLIT - SPEECHLESS (100%),Peoples Services,LAC - Education,A44280,
http://opendatacommunities.org/id/london-borough-council/sutton,London Borough of Sutton,20/01/2022,10005594,6.95, AMAZON.CO.UK HK3GI08P5,SPLIT - SPEECHLESS (100%),Peoples Services,LAC - Education,A44280,
http://opendatacommunities.org/id/london-borough-council/sutton,London Borough of Sutton,21/01/2022,10005594,6.95, AMAZON.CO.UK EQ56E93H5,SPLIT - SPEECHLESS (100%),Peoples Services,LAC - Education,A44280,
http://opendatacommunities.org/id/london-borough-council/sutton,London Borough of Sutton,13/01/2022,10005594,9.99, AMAZON.CO.UK EM1TL43U5,SPLIT - CAN BEARS SKI?: 1 (100%),Peoples Services,LAC - Education,A44280,
http://opendatacommunities.org/id/london-borough-council/sutton,London Borough of Sutton,21/01/2022,10005594,6.95, AMAZON.CO.UK UG2W24WQ5,SPLIT - SPEECHLESS (100%),Peoples Services,LAC - Education,A44280,
http://opendatacommunities.org/id/london-borough-council/sutton,London Borough of Sutton,21/01/2022,10005594,6.95, AMAZON.CO.UK X03R866D5,SPLIT - SPEECHLESS (100%),Peoples Services,LAC - Education,A44280,
http://opendatacommunities.org/id/london-borough-council/sutton,London Borough of Sutton,13/01/2022,10005594,9.99, AMAZON.CO.UK JL1IX1JN5,SPLIT - CAN BEARS SKI?: 1 (100%),Peoples Services,LAC - Education,A44280,
http://opendatacommunities.org/id/london-borough-council/sutton,London Borough of Sutton,13/01/2022,10005594,9.99, AMAZON.CO.UK PK55T20O5,SPLIT - CAN BEARS SKI?: 1 (100%),Peoples Services,LAC - Education,A44280,
http://opendatacommunities.org/id/london-borough-council/sutton,London Borough of Sutton,13/01/2022,10005594,9.99, AMAZON.CO.UK O00XJ8R35,SPLIT - CAN BEARS SKI?: 1 (100%),Peoples Services,LAC - Education,A44280,
http://opendatacommunities.org/id/london-borough-council/sutton,London Borough of Sutton,13/01/2022,10005594,9.99, AMAZON.CO.UK E707B32J5,SPLIT - CAN BEARS SKI?: 1 (100%),Peoples Services,LAC - Education,A44280,
http://opendatacommunities.org/id/london-borough-council/sutton,London Borough of Sutton,13/01/2022,10005594,9.99, AMAZON.CO.UK NX7AC7QM5,SPLIT - CAN BEARS SKI?: 1 (100%),Peoples Services,LAC - Education,A44280,
http://opendatacommunities.org/id/london-borough-council/sutton,London Borough of Sutton,13/01/2022,10005594,9.99, AMAZON.CO.UK Z80520M85,SPLIT - CAN BEARS SKI?: 1 (100%),Peoples Services,LAC - Education,A44280,
http://opendatacommunities.org/id/london-borough-council/sutton,London Borough of Sutton,21/01/2022,10005594,6.95, AMAZON.CO.UK 601T28SJ5,SPLIT - SPEECHLESS (100%),Peoples Services,LAC - Education,A44280,
http://opendatacommunities.org/id/london-borough-council/sutton,London Borough of Sutton,07/01/2022,10005594,30.62, MOUSETRAP,MOUSETRAP THEATRE TICKETS,Peoples Services,LAC - Education,A44280,
http://opendatacommunities.org/id/london-borough-council/sutton,London Borough of Sutton,06/01/2022,10005594,10.00, AMAZON.CO.UK 024BA2ID5,SPLIT - AMAZON.CO.UK GIFT CARD IN A GREETING CARD (CONGRATS) (100%),Peoples Services,LAC - Education,A44280,
http://opendatacommunities.org/id/london-borough-council/sutton,London Borough of Sutton,21/01/2022,10005594,6.95, AMAZON.CO.UK MI9V072K5,SPLIT - SPEECHLESS (100%),Peoples Services,LAC - Education,A44280,
http://opendatacommunities.org/id/london-borough-council/sutton,London Borough of Sutton,14/01/2022,10005594,7.34, AMAZON.CO.UK 9J3UQ4D65,"SPLIT - I AM NOT A LABEL: 34 DISABLED ARTISTS, THINKERS, ATHLETES AND ACTIVISTS FROM PAST AND PRESENT (100%)",Peoples Services,LAC - Education,A44280,
http://opendatacommunities.org/id/london-borough-council/sutton,London Borough of Sutton,13/01/2022,10005594,9.99, AMAZON.CO.UK AL6I51JP5,SPLIT - CAN BEARS SKI?: 1 (100%),Peoples Services,LAC - Education,A44280,
http://opendatacommunities.org/id/london-borough-council/sutton,London Borough of Sutton,13/01/2022,10005594,9.99, AMAZON.CO.UK O884654X5,SPLIT - CAN BEARS SKI?: 1 (100%),Peoples Services,LAC - Education,A44280,
http://opendatacommunities.org/id/london-borough-council/sutton,London Borough of Sutton,13/01/2022,10005594,9.99, AMAZON.CO.UK 2I2E24J05,SPLIT - CAN BEARS SKI?: 1 (100%),Peoples Services,LAC - Education,A44280,
http://opendatacommunities.org/id/london-borough-council/sutton,London Borough of Sutton,23/01/2022,10005594,6.95, AMAZON.CO.UK P15ZR3HW5,SPLIT - SPEECHLESS (100%),Peoples Services,LAC - Education,A44280,
http://opendatacommunities.org/id/london-borough-council/sutton,London Borough of Sutton,23/01/2022,10005594,6.95, AMAZON.CO.UK CX3FP6QQ5,SPLIT - SPEECHLESS (100%),Peoples Services,LAC - Education,A44280,
http://opendatacommunities.org/id/london-borough-council/sutton,London Borough of Sutton,23/01/2022,10005594,6.95, AMAZON.CO.UK EG4003D15,SPLIT - SPEECHLESS (100%),Peoples Services,LAC - Education,A44280,
http://opendatacommunities.org/id/london-borough-council/sutton,London Borough of Sutton,23/01/2022,10005594,6.95, AMAZON.CO.UK LW1BT4E05,SPLIT - SPEECHLESS (100%),Peoples Services,LAC - Education,A44280,
http://opendatacommunities.org/id/london-borough-council/sutton,London Borough of Sutton,23/01/2022,10005594,6.95, AMAZON.CO.UK HI4GL4955,SPLIT - SPEECHLESS (100%),Peoples Services,LAC - Education,A44280,
http://opendatacommunities.org/id/london-borough-council/sutton,London Borough of Sutton,23/01/2022,10005594,6.95, AMAZON.CO.UK 781SV6IE5,SPLIT - SPEECHLESS (100%),Peoples Services,LAC - Education,A44280,
http://opendatacommunities.org/id/london-borough-council/sutton,London Borough of Sutton,23/01/2022,10005594,6.95, AMAZON.CO.UK 7W4GR9755,SPLIT - SPEECHLESS (100%),Peoples Services,LAC - Education,A44280,
http://opendatacommunities.org/id/london-borough-council/sutton,London Borough of Sutton,21/01/2022,10005594,6.95, AMAZON.CO.UK SK57W2TJ5,SPLIT - SPEECHLESS (100%),Peoples Services,LAC - Education,A44280,
http://opendatacommunities.org/id/london-borough-council/sutton,London Borough of Sutton,23/01/2022,10005594,6.95, AMAZON.CO.UK D33JO2FP5,SPLIT - SPEECHLESS (100%),Peoples Services,LAC - Education,A44280,
http://opendatacommunities.org/id/london-borough-council/sutton,London Borough of Sutton,13/01/2022,10005594,9.99, AMAZON.CO.UK 1B1L58XC5,SPLIT - CAN BEARS SKI?: 1 (100%),Peoples Services,LAC - Education,A44280,
http://opendatacommunities.org/id/london-borough-council/sutton,London Borough of Sutton,25/01/2022,10005594,14.99, AMAZON.CO.UK IH4Y95GB5,SPLIT - NEW 9-1 GCSE MUSIC AQA COMPLETE REVISION & PRACTICE WITH ONLINE EDITION & AUDIO: FOR EXAMS IN 2022 AND BEYOND (CGP GCSE MUSIC 9-1 REVISION) (100%),Peoples Services,LAC - Education,A44280,
http://opendatacommunities.org/id/london-borough-council/sutton,London Borough of Sutton,18/01/2022,10005594,7.51, AMAZON.CO.UK PG1SY8W95,SPLIT - SPEECHLESS (100%),Peoples Services,LAC - Education,A44280,
http://opendatacommunities.org/id/london-borough-council/sutton,London Borough of Sutton,18/01/2022,10005594,7.51, AMAZON.CO.UK 7O9WI9IF5,SPLIT - SPEECHLESS (100%),Peoples Services,LAC - Education,A44280,
http://opendatacommunities.org/id/london-borough-council/sutton,London Borough of Sutton,18/01/2022,10005594,7.51, AMAZON.CO.UK 1Y4ZZ73Q5,SPLIT - SPEECHLESS (100%),Peoples Services,LAC - Education,A44280,
http://opendatacommunities.org/id/london-borough-council/sutton,London Borough of Sutton,18/01/2022,10005594,7.34, AMAZON.CO.UK 0W41F6E45,"SPLIT - I AM NOT A LABEL: 34 DISABLED ARTISTS, THINKERS, ATHLETES AND ACTIVISTS FROM PAST AND PRESENT (100%)",Peoples Services,LAC - Education,A44280,
http://opendatacommunities.org/id/london-borough-council/sutton,London Borough of Sutton,18/01/2022,10005594,7.51, AMAZON.CO.UK QC6OJ3355,SPLIT - SPEECHLESS (100%),Peoples Services,LAC - Education,A44280,
http://opendatacommunities.org/id/london-borough-council/sutton,London Borough of Sutton,18/01/2022,10005594,7.51, AMAZON.CO.UK JX6D33C25,SPLIT - SPEECHLESS (100%),Peoples Services,LAC - Education,A44280,
http://opendatacommunities.org/id/london-borough-council/sutton,London Borough of Sutton,15/01/2022,10005594,7.34, AMAZON.CO.UK S622D14O5,"SPLIT - I AM NOT A LABEL: 34 DISABLED ARTISTS, THINKERS, ATHLETES AND ACTIVISTS FROM PAST AND PRESENT (100%)",Peoples Services,LAC - Education,A44280,
http://opendatacommunities.org/id/london-borough-council/sutton,London Borough of Sutton,15/01/2022,10005594,7.34, AMAZON.CO.UK Y82CV7GV5,"SPLIT - I AM NOT A LABEL: 34 DISABLED ARTISTS, THINKERS, ATHLETES AND ACTIVISTS FROM PAST AND PRESENT (100%)",Peoples Services,LAC - Education,A44280,
http://opendatacommunities.org/id/london-borough-council/sutton,London Borough of Sutton,15/01/2022,10005594,7.34, AMAZON.CO.UK CY8AK6BK5,"SPLIT - I AM NOT A LABEL: 34 DISABLED ARTISTS, THINKERS, ATHLETES AND ACTIVISTS FROM PAST AND PRESENT (100%)",Peoples Services,LAC - Education,A44280,
http://opendatacommunities.org/id/london-borough-council/sutton,London Borough of Sutton,25/01/2022,10005594,5.95, AMAZON.CO.UK XT3LG8FB5,"SPLIT - GCSE MATHS EDEXCEL EXAM PRACTICE WORKBOOK: FOUNDATION - FOR THE GRADE 9-1 COURSE (WITH ANSWERS): IDEAL FOR CATCH-UP, ASSESSMENTS AND EXAMS IN 2021 AND (23.29%)",Peoples Services,LAC - Education,A44280,
http://opendatacommunities.org/id/london-borough-council/sutton,London Borough of Sutton,14/01/2022,10005594,7.34, AMAZON.CO.UK BJ8MQ9K55,"SPLIT - I AM NOT A LABEL: 34 DISABLED ARTISTS, THINKERS, ATHLETES AND ACTIVISTS FROM PAST AND PRESENT (100%)",Peoples Services,LAC - Education,A44280,
http://opendatacommunities.org/id/london-borough-council/sutton,London Borough of Sutton,16/01/2022,10005594,7.34, AMAZON.CO.UK 2Q8GD1LJ4,"SPLIT - I AM NOT A LABEL: 34 DISABLED ARTISTS, THINKERS, ATHLETES AND ACTIVISTS FROM PAST AND PRESENT (100%)",Peoples Services,LAC - Education,A44280,
http://opendatacommunities.org/id/london-borough-council/sutton,London Borough of Sutton,16/01/2022,10005594,7.34, AMAZON.CO.UK II5V912Z5,"SPLIT - I AM NOT A LABEL: 34 DISABLED ARTISTS, THINKERS, ATHLETES AND ACTIVISTS FROM PAST AND PRESENT (100%)",Peoples Services,LAC - Education,A44280,
http://opendatacommunities.org/id/london-borough-council/sutton,London Borough of Sutton,16/01/2022,10005594,7.34, AMAZON.CO.UK BT8HE9UT5,"SPLIT - I AM NOT A LABEL: 34 DISABLED ARTISTS, THINKERS, ATHLETES AND ACTIVISTS FROM PAST AND PRESENT (100%)",Peoples Services,LAC - Education,A44280,
http://opendatacommunities.org/id/london-borough-council/sutton,London Borough of Sutton,16/01/2022,10005594,7.34, AMAZON.CO.UK T24WB0ZO5,"SPLIT - I AM NOT A LABEL: 34 DISABLED ARTISTS, THINKERS, ATHLETES AND ACTIVISTS FROM PAST AND PRESENT (100%)",Peoples Services,LAC - Education,A44280,
http://opendatacommunities.org/id/london-borough-council/sutton,London Borough of Sutton,16/01/2022,10005594,7.34, AMAZON.CO.UK YR76D7KG5,"SPLIT - I AM NOT A LABEL: 34 DISABLED ARTISTS, THINKERS, ATHLETES AND ACTIVISTS FROM PAST AND PRESENT (100%)",Peoples Services,LAC - Education,A44280,
http://opendatacommunities.org/id/london-borough-council/sutton,London Borough of Sutton,16/01/2022,10005594,7.34, AMAZON.CO.UK MO8SX0ME5,"SPLIT - I AM NOT A LABEL: 34 DISABLED ARTISTS, THINKERS, ATHLETES AND ACTIVISTS FROM PAST AND PRESENT (100%)",Peoples Services,LAC - Education,A44280,
http://opendatacommunities.org/id/london-borough-council/sutton,London Borough of Sutton,18/01/2022,10005594,7.51, AMAZON.CO.UK HQ5ED16Z5,SPLIT - SPEECHLESS (100%),Peoples Services,LAC - Education,A44280,
http://opendatacommunities.org/id/london-borough-council/sutton,London Borough of Sutton,17/01/2022,10005594,7.34, AMAZON.CO.UK 9K12H6WS5,"SPLIT - I AM NOT A LABEL: 34 DISABLED ARTISTS, THINKERS, ATHLETES AND ACTIVISTS FROM PAST AND PRESENT (100%)",Peoples Services,LAC - Education,A44280,
http://opendatacommunities.org/id/london-borough-council/sutton,London Borough of Sutton,17/01/2022,10005594,5.94, AMAZON.CO.UK 0I53S3IA5,SPLIT - WORK ON YOUR HANDWRITING: A WORKBOOK FOR ADULT LEARNERS OF ENGLISH (COLLINS WORK ON YOUR. . .): A2-C2 (100%),Peoples Services,LAC - Education,A44280,
http://opendatacommunities.org/id/london-borough-council/sutton,London Borough of Sutton,17/01/2022,10005594,4.70, AMAZON.CO.UK CP30V8N15,SPLIT - HANDWRITING TODAY: BK. 2 (HANDWRITING TODAY) (100%),Peoples Services,LAC - Education,A44280,
http://opendatacommunities.org/id/london-borough-council/sutton,London Borough of Sutton,17/01/2022,10005594,4.70, AMAZON.CO.UK 1C07P6JT5,SPLIT - HANDWRITING TODAY: BK. 2 (HANDWRITING TODAY) (100%),Peoples Services,LAC - Education,A44280,
http://opendatacommunities.org/id/london-borough-council/sutton,London Borough of Sutton,17/01/2022,10005594,5.94, AMAZON.CO.UK O57J522D5,SPLIT - WORK ON YOUR HANDWRITING: A WORKBOOK FOR ADULT LEARNERS OF ENGLISH (COLLINS WORK ON YOUR. . .): A2-C2 (100%),Peoples Services,LAC - Education,A44280,
http://opendatacommunities.org/id/london-borough-council/sutton,London Borough of Sutton,17/01/2022,10005594,7.34, AMAZON.CO.UK CI9JJ2UX5,"SPLIT - I AM NOT A LABEL: 34 DISABLED ARTISTS, THINKERS, ATHLETES AND ACTIVISTS FROM PAST AND PRESENT (100%)",Peoples Services,LAC - Education,A44280,
http://opendatacommunities.org/id/london-borough-council/sutton,London Borough of Sutton,16/01/2022,10005594,7.34, AMAZON.CO.UK AB17F2WZ5,"SPLIT - I AM NOT A LABEL: 34 DISABLED ARTISTS, THINKERS, ATHLETES AND ACTIVISTS FROM PAST AND PRESENT (100%)",Peoples Services,LAC - Education,A44280,
http://opendatacommunities.org/id/london-borough-council/sutton,London Borough of Sutton,15/01/2022,10005594,7.34, AMAZON.CO.UK ZS79C7C95,"SPLIT - I AM NOT A LABEL: 34 DISABLED ARTISTS, THINKERS, ATHLETES AND ACTIVISTS FROM PAST AND PRESENT (100%)",Peoples Services,LAC - Education,A44280,
http://opendatacommunities.org/id/london-borough-council/sutton,London Borough of Sutton,15/01/2022,10005594,7.34, AMAZON.CO.UK 9D1OO2A15,"SPLIT - I AM NOT A LABEL: 34 DISABLED ARTISTS, THINKERS, ATHLETES AND ACTIVISTS FROM PAST AND PRESENT (100%)",Peoples Services,LAC - Education,A44280,
http://opendatacommunities.org/id/london-borough-council/sutton,London Borough of Sutton,15/01/2022,10005594,9.99, AMAZON.CO.UK 4P5YF8Z55,SPLIT - CAN BEARS SKI?: 1 (100%),Peoples Services,LAC - Education,A44280,
http://opendatacommunities.org/id/london-borough-council/sutton,London Borough of Sutton,14/01/2022,10005594,9.99, AMAZON.CO.UK PS16E3JU5,SPLIT - CAN BEARS SKI?: 1 (100%),Peoples Services,LAC - Education,A44280,
http://opendatacommunities.org/id/london-borough-council/sutton,London Borough of Sutton,14/01/2022,10005594,9.99, AMAZON.CO.UK MU75D6U45,SPLIT - CAN BEARS SKI?: 1 (100%),Peoples Services,LAC - Education,A44280,
http://opendatacommunities.org/id/london-borough-council/sutton,London Borough of Sutton,14/01/2022,10005594,7.34, AMAZON.CO.UK WS5MY3KR5,"SPLIT - I AM NOT A LABEL: 34 DISABLED ARTISTS, THINKERS, ATHLETES AND ACTIVISTS FROM PAST AND PRESENT (100%)",Peoples Services,LAC - Education,A44280,
http://opendatacommunities.org/id/london-borough-council/sutton,London Borough of Sutton,18/01/2022,10005594,7.34, AMAZON.CO.UK 8W8S03DO5,"SPLIT - I AM NOT A LABEL: 34 DISABLED ARTISTS, THINKERS, ATHLETES AND ACTIVISTS FROM PAST AND PRESENT (100%)",Peoples Services,LAC - Education,A44280,
http://opendatacommunities.org/id/london-borough-council/sutton,London Borough of Sutton,14/01/2022,10005594,9.99, AMAZON.CO.UK DG3F66K85,SPLIT - CAN BEARS SKI?: 1 (100%),Peoples Services,LAC - Education,A44280,
http://opendatacommunities.org/id/london-borough-council/sutton,London Borough of Sutton,14/01/2022,10005594,7.34, AMAZON.CO.UK PD22L6HR5,"SPLIT - I AM NOT A LABEL: 34 DISABLED ARTISTS, THINKERS, ATHLETES AND ACTIVISTS FROM PAST AND PRESENT (100%)",Peoples Services,LAC - Education,A44280,
http://opendatacommunities.org/id/london-borough-council/sutton,London Borough of Sutton,14/01/2022,10005594,7.34, AMAZON.CO.UK ZH3H68D55,"SPLIT - I AM NOT A LABEL: 34 DISABLED ARTISTS, THINKERS, ATHLETES AND ACTIVISTS FROM PAST AND PRESENT (100%)",Peoples Services,LAC - Education,A44280,
http://opendatacommunities.org/id/london-borough-council/sutton,London Borough of Sutton,14/01/2022,10005594,7.34, AMAZON.CO.UK G756U3G75,"SPLIT - I AM NOT A LABEL: 34 DISABLED ARTISTS, THINKERS, ATHLETES AND ACTIVISTS FROM PAST AND PRESENT (100%)",Peoples Services,LAC - Education,A44280,
http://opendatacommunities.org/id/london-borough-council/sutton,London Borough of Sutton,14/01/2022,10005594,7.34, AMAZON.CO.UK V38IX4SN5,"SPLIT - I AM NOT A LABEL: 34 DISABLED ARTISTS, THINKERS, ATHLETES AND ACTIVISTS FROM PAST AND PRESENT (100%)",Peoples Services,LAC - Education,A44280,
http://opendatacommunities.org/id/london-borough-council/sutton,London Borough of Sutton,18/01/2022,10005594,7.51, AMAZON.CO.UK AH54J4VX5,SPLIT - SPEECHLESS (100%),Peoples Services,LAC - Education,A44280,
http://opendatacommunities.org/id/london-borough-council/sutton,London Borough of Sutton,16/01/2022,10005594,7.34, AMAZON.CO.UK GN7710OD5,"SPLIT - I AM NOT A LABEL: 34 DISABLED ARTISTS, THINKERS, ATHLETES AND ACTIVISTS FROM PAST AND PRESENT (100%)",Peoples Services,LAC - Education,A44280,
http://opendatacommunities.org/id/london-borough-council/sutton,London Borough of Sutton,16/01/2022,10005594,7.34, AMAZON.CO.UK 8A5QL9FF5,"SPLIT - I AM NOT A LABEL: 34 DISABLED ARTISTS, THINKERS, ATHLETES AND ACTIVISTS FROM PAST AND PRESENT (100%)",Peoples Services,LAC - Education,A44280,
http://opendatacommunities.org/id/london-borough-council/sutton,London Borough of Sutton,18/01/2022,10005594,7.34, AMAZON.CO.UK E601B4E45,"SPLIT - I AM NOT A LABEL: 34 DISABLED ARTISTS, THINKERS, ATHLETES AND ACTIVISTS FROM PAST AND PRESENT (100%)",Peoples Services,LAC - Education,A44280,
http://opendatacommunities.org/id/london-borough-council/sutton,London Borough of Sutton,16/01/2022,10005594,7.34, AMAZON.CO.UK L17Z35U95,"SPLIT - I AM NOT A LABEL: 34 DISABLED ARTISTS, THINKERS, ATHLETES AND ACTIVISTS FROM PAST AND PRESENT (100%)",Peoples Services,LAC - Education,A44280,
http://opendatacommunities.org/id/london-borough-council/sutton,London Borough of Sutton,25/01/2022,10005594,6.95, AMAZON.CO.UK XT3LG8FB5,SPLIT - NEW BTEC FIRST IN SPORT: STUDY & EXAM PRACTICE - FOR THE EXAMS IN 2020 AND BEYOND (CGP BTEC FIRST) (27.2%),Peoples Services,LAC - Education,A44280,
http://opendatacommunities.org/id/london-borough-council/sutton,London Borough of Sutton,25/01/2022,10005594,6.36, AMAZON.CO.UK XT3LG8FB5,SPLIT - GCSE HISTORY EDEXCEL REVISION GUIDE - FOR THE GRADE 9-1 COURSE: IDEAL FOR CATCH-UP AND THE 2022 AND 2023 EXAMS (CGP GCSE HISTORY 9-1 REVISION) (24.89%),Peoples Services,LAC - Education,A44280,
http://opendatacommunities.org/id/london-borough-council/sutton,London Borough of Sutton,25/01/2022,10005594,6.29, AMAZON.CO.UK XT3LG8FB5,SPLIT - GRADE 9-1 GCSE MATHS EDEXCEL REVISION QUESTION CARDS - FOUNDATION: IDEAL FOR EXAMS AND MOCKS IN 2022 & 2023 (CGP GCSE MATHS 9-1 REVISION) (24.62%),Peoples Services,LAC - Education,A44280,
http://opendatacommunities.org/id/london-borough-council/sutton,London Borough of Sutton,25/01/2022,10005594,25.21, AMAZON.CO.UK MH82550T5,BALANCING ENTRY AMOUNT (-878.4%),Peoples Services,LAC - Education,A44280,
http://opendatacommunities.org/id/london-borough-council/sutton,London Borough of Sutton,25/01/2022,10005594,2.87, AMAZON.CO.UK 5Z3WY9YB5,BALANCING ENTRY AMOUNT (-11.38%),Peoples Services,LAC - Education,A44280,
http://opendatacommunities.org/id/london-borough-council/sutton,London Borough of Sutton,16/01/2022,10005594,7.34, AMAZON.CO.UK HI9AK0LV5,"SPLIT - I AM NOT A LABEL: 34 DISABLED ARTISTS, THINKERS, ATHLETES AND ACTIVISTS FROM PAST AND PRESENT (100%)",Peoples Services,LAC - Education,A44280,
http://opendatacommunities.org/id/london-borough-council/sutton,London Borough of Sutton,16/01/2022,10005594,7.34, AMAZON.CO.UK 6771O7HQ5,"SPLIT - I AM NOT A LABEL: 34 DISABLED ARTISTS, THINKERS, ATHLETES AND ACTIVISTS FROM PAST AND PRESENT (100%)",Peoples Services,LAC - Education,A44280,
http://opendatacommunities.org/id/london-borough-council/sutton,London Borough of Sutton,16/01/2022,10005594,7.34, AMAZON.CO.UK LR7FI7JC5,"SPLIT - I AM NOT A LABEL: 34 DISABLED ARTISTS, THINKERS, ATHLETES AND ACTIVISTS FROM PAST AND PRESENT (100%)",Peoples Services,LAC - Education,A44280,
http://opendatacommunities.org/id/london-borough-council/sutton,London Borough of Sutton,16/01/2022,10005594,7.34, AMAZON.CO.UK QO3P842N5,"SPLIT - I AM NOT A LABEL: 34 DISABLED ARTISTS, THINKERS, ATHLETES AND ACTIVISTS FROM PAST AND PRESENT (100%)",Peoples Services,LAC - Education,A44280,
http://opendatacommunities.org/id/london-borough-council/sutton,London Borough of Sutton,18/01/2022,10005594,7.34, AMAZON.CO.UK 555DG99G5,"SPLIT - I AM NOT A LABEL: 34 DISABLED ARTISTS, THINKERS, ATHLETES AND ACTIVISTS FROM PAST AND PRESENT (100%)",Peoples Services,LAC - Education,A44280,
http://opendatacommunities.org/id/london-borough-council/sutton,London Borough of Sutton,18/01/2022,10005594,7.34, AMAZON.CO.UK IK6905CN5,"SPLIT - I AM NOT A LABEL: 34 DISABLED ARTISTS, THINKERS, ATHLETES AND ACTIVISTS FROM PAST AND PRESENT (100%)",Peoples Services,LAC - Education,A44280,
http://opendatacommunities.org/id/london-borough-council/sutton,London Borough of Sutton,18/01/2022,10005594,7.51, AMAZON.CO.UK 0144T4405,SPLIT - SPEECHLESS (100%),Peoples Services,LAC - Education,A44280,
http://opendatacommunities.org/id/london-borough-council/sutton,London Borough of Sutton,18/01/2022,10005594,7.51, AMAZON.CO.UK AQ8IX1UQ5,SPLIT - SPEECHLESS (100%),Peoples Services,LAC - Education,A44280,
http://opendatacommunities.org/id/london-borough-council/sutton,London Borough of Sutton,18/01/2022,10005594,7.51, AMAZON.CO.UK E42XB30M5,SPLIT - SPEECHLESS (100%),Peoples Services,LAC - Education,A44280,
http://opendatacommunities.org/id/london-borough-council/sutton,London Borough of Sutton,18/01/2022,10005594,7.34, AMAZON.CO.UK AM0W56315,"SPLIT - I AM NOT A LABEL: 34 DISABLED ARTISTS, THINKERS, ATHLETES AND ACTIVISTS FROM PAST AND PRESENT (100%)",Peoples Services,LAC - Education,A44280,
http://opendatacommunities.org/id/london-borough-council/sutton,London Borough of Sutton,18/01/2022,10005594,7.34, AMAZON.CO.UK 1N6E40HF5,"SPLIT - I AM NOT A LABEL: 34 DISABLED ARTISTS, THINKERS, ATHLETES AND ACTIVISTS FROM PAST AND PRESENT (100%)",Peoples Services,LAC - Education,A44280,
http://opendatacommunities.org/id/london-borough-council/sutton,London Borough of Sutton,16/01/2022,10005594,7.34, AMAZON.CO.UK FF3Y37Z15,"SPLIT - I AM NOT A LABEL: 34 DISABLED ARTISTS, THINKERS, ATHLETES AND ACTIVISTS FROM PAST AND PRESENT (100%)",Peoples Services,LAC - Education,A44280,
http://opendatacommunities.org/id/london-borough-council/sutton,London Borough of Sutton,16/01/2022,10005594,7.34, AMAZON.CO.UK FC3PS93L5,"SPLIT - I AM NOT A LABEL: 34 DISABLED ARTISTS, THINKERS, ATHLETES AND ACTIVISTS FROM PAST AND PRESENT (100%)",Peoples Services,LAC - Education,A44280,
http://opendatacommunities.org/id/london-borough-council/sutton,London Borough of Sutton,16/01/2022,10005594,7.34, AMAZON.CO.UK YI9QU6GH5,"SPLIT - I AM NOT A LABEL: 34 DISABLED ARTISTS, THINKERS, ATHLETES AND ACTIVISTS FROM PAST AND PRESENT (100%)",Peoples Services,LAC - Education,A44280,
http://opendatacommunities.org/id/london-borough-council/sutton,London Borough of Sutton,16/01/2022,10005594,7.34, AMAZON.CO.UK 8D9TT2FQ5,"SPLIT - I AM NOT A LABEL: 34 DISABLED ARTISTS, THINKERS, ATHLETES AND ACTIVISTS FROM PAST AND PRESENT (100%)",Peoples Services,LAC - Education,A44280,
